{"text_format":"1","workbook":"xlsx","n_sheets":31,"sheets":["modProv","Инструкция","Лог обновления","Титульный","Список МО","Стандарты","Ссылки на публикации","Комментарии","Проверка","AllSheetsInThisWorkbook","TEHSHEET","et_union_hor","et_union_vert","modInfo","modRegion","modReestr","modfrmReestr","modUpdTemplMain","REESTR_ORG","modClassifierValidate","modHyp","modList00","modList01","modList02","modList03","modfrmDateChoose","modComm","modThisWorkbook","REESTR_MO","modfrmReestrMR","modfrmCheckUpdates"],"not_rendered":{"charts":0,"images":21,"macros":1,"external_links":0,"defined_names":138,"comments":0,"pivot_tables":0},"unopened":[],"bounds":{"document_bytes":16777216,"sheet_cells":100000,"rows_first":2000,"rows_last":500,"rows_between":2000,"halvings":0,"cell_chars":16384,"cell_head_chars":4096},"cells_cut":0,"cells_raw":0,"read":"whole","date_system":"1900"}

{"sheet":"modProv","index":0,"n_rows":0,"n_cols":0,"rows_kept":0,"cut":false,"hidden":true,"merged":[]}

{"sheet":"Инструкция","index":1,"n_rows":102,"n_cols":27,"rows_kept":102,"cut":false,"hidden":false,"merged":[[83,7,83,23],[79,4,79,7],[101,5,101,23],[99,5,99,18],[80,4,80,6],[80,7,80,23],[81,4,81,6],[97,4,97,23],[81,7,81,23],[39,4,39,23],[82,7,82,23],[71,4,71,23],[82,4,82,6],[70,4,70,23],[60,7,60,23],[79,8,79,23],[76,4,76,23],[74,4,74,23],[59,4,59,6],[78,4,78,23],[57,4,57,6],[72,4,72,23],[58,4,58,6],[75,4,75,23],[73,4,73,23],[69,4,69,23],[58,7,58,23],[57,7,57,23],[22,15,22,22],[59,7,59,23],[1,1,1,6],[2,1,2,2],[4,1,4,24],[6,4,18,23],[20,5,20,12],[20,15,20,23],[21,5,21,12],[45,4,56,23],[21,15,21,23],[34,4,38,23],[40,4,44,23]]}
[null,null,null,null,null,null,null,null,null,null,null,null,null,null,null,null,null,null,null,null,null,null,null,null,null,null," (требуется обновление)"]
[null,{"$f":"\"Код шаблона: \" & GetCode()","v":"Код шаблона: JKH.OPEN.INFO.REQUEST.VO"}]
[null,{"$f":"\"Версия \" & GetVersion()","v":"Версия 2.1.3"}]
[]
[null,"Предложение об установлении тарифов в сфере водоотведения и о способах приобретения, стоимости и объемах товаров, необходимых для производства регулируемых товаров и (или) оказания регулируемых услуг"]
[]
[null,null,null,null,"• На рабочем месте должен быть установлен MS Office 2003 SP3, 2007 SP3, 2010 с полной версией MS Excel\n\n• Макросы во время работы должны быть включены (!)\n\n• Для корректной работы отчёта требуется выбрать низкий уровень безопасности\n(В меню MS Excel 2003: Сервис | Макрос | Безопасность | выбрать пункт «Низкая безопасность» | OK)\n(В меню MS Excel 2007/2010: Параметры Excel | Центр управления безопасностью | Параметры центра управления безопасностью | Параметры макросов | Включить все макросы | ОК)\n\n• Если Вы работаете в табличном процессоре MS Excel 2007 и выше, то можете использовать для работы формат XLSM (Книга Excel с поддержкой макросов). При работе в формате XLSM заметно быстрее происходит сохранение файла, а также уменьшается размер по сравнению с форматом XLS\n\n• Не рекомендуется снимать защиту с листов и каким-либо образом модифицировать защищаемые формулы и расчётные поля, в противном случае, отчёт будет отклонён системой\n\n• При сохранении не следует выбирать формат XLSX (Книга Excel), так как в указанном формате макросы, необходимые для работы отчёта, безвозвратно удаляются"]
[]
[]
[]
[]
[]
[]
[]
[]
[]
[]
[]
[]
[]
[null,null,null,null,"A"," - необязательные для заполнения",null,null,null,null,null,null,null,null,"A"," - с формулами и константами"]
[null,null,null,null,"A"," - обязательные для заполнения",null,null,null,null,null,null,null,null,"A"," - с выбором значений до двойному клику,"]
[null,null,null,null,null,null,null,null,null,null,null,null,null,null,null,"либо с возможностью выбора даты из календаря или ручного ввода"]
[]
[]
[]
[]
[]
[]
[]
[]
[]
[]
[]
[null,null,null,null,"Если в предложенном Вам списке необходимая организация, МР/МО отсутствуют, обновите реестры с помощью кнопок\n\nВ результате синхронизации с базой данных список организаций (МР/МО) будет заменён актуальным (механизм синхронизации требует подключения к сети Интернет и основан на использовании протокола HTTPS (TCP порт 443))\n\nЕсли после обновления Вам не удалось найти необходимую организацию в списке, обратитесь к ответственному за поддержание реестра Вашего региона. Информация о региональных органах регулирования доступна по ссылке:"]
[]
[]
[]
[]
[null,null,null,null,"http://www.fstrf.ru/regions/region/showlist"]
[]
[]
[]
[]
[]
[null,null,null,null,"• При сохранении шаблона осуществляется проверка корректности данных, в том числе на наличие значений в ячейках, обязательных для заполнения\n\n• Если какая-то ячейка не удовлетворяет условию проверки, на лист «Проверка» добавляется гиперссылка на данную ячейку и указывается причина ошибки\n\n• В колонке «Статус» для каждого сообщения возможны 2 значения: ошибка и предупреждение\n\n• При наличии сообщений со статусом «Ошибка» шаблон будет отклонён системой и не будет загружен в хранилище данных, сообщения со статусом «Предупреждение» носят информационный характер, и такой шаблон будет принят системой"]
[]
[]
[]
[]
[]
[]
[]
[]
[]
[]
[]
[null,null,null,null,"Web-сайт:",null,null,"http://support.eias.ru/index.php?a=add&catid=5"]
[null,null,null,null,"Дистрибутивы:",null,null,"http://eias.ru/?page=show_distrs"]
[null,null,null,null,null,null,null,"для устранения ошибок (например, \"Compile error in hidden module\")"]
[]
[]
[]
[]
[]
[]
[]
[]
[]
[null,null,null,null,"Принципы работы с шаблоном"]
[null,null,null,null," Перед началом работы с шаблоном Вам необходимо нажать кнопку \"Приступить к заполнению\", после чего на форме выбора выбрать из выпадающего списка нужный субъект РФ. После выбора субъекта РФ в шаблоне отобразятся листы для заполнения."]
[null,null,null,null," На листе «Титульный» нужно заполнить все ячейки голубого и синего цвета.\n Для создания печатной формы нажмите на иконку принтера на листе «Титульный» (левый верхний угол)."]
[null,null,null,null," Гиперссылки на листах вводите, не нарушая цвет ячейки (если копируете гиперссылку из браузера, то выполните двойной щелчок левой кнопки мыши по ячейке и только после этого можете вставить скопированный элемент).\n"]
[null,null,null,null," При вводе даты на расчетных листах необходимо выбрать дату из календаря (иконка справа от выбранной ячейки), либо ввести дату непосредственно в ячейку в формате - 'ДД.ММ.ГГГГ'."]
[null,null,null,null," Если какой-либо из показателей на расчетных листах для Вашей организации отсутствует, введите в поле, обязательное для заполнение, «0» (для числовых показателей) и «-» (для текстовых).\n"]
[null,null,null,null," Внимательно следите за информационными сообщениями на расчетных листах."]
[null,null,null,null," Все необходимые комментарии по всем формам Вы можете отразить на листе «Комментарии»."]
[]
[null,null,null,null,"Обосновывающие материалы (документы) необходимо загружать с помощью \"ЕИАС Мониторинг\""]
[null,null,null,null,"Инструкция",null,null,null,"http://eias.ru/files/shablon/manual_loading_through_monitoring.pdf"]
[]
[null,null,null,null,"E-mail:",null,null,"openinfo@eias.ru"]
[null,null,null,null,"Web-сайт:",null,null,"http://eias.ru/?page=show_templates"]
[]
[]
[]
[]
[]
[]
[]
[]
[]
[]
[]
[]
[]
[]
[null,null,null,null,"При наличии подключения к Интернет, можно автоматически проверять наличие доступных обновлений. Выберите способ оповещения о наличии обновлений для отчёта:"]
[]
[null,null,null,null,null,"проверять доступные обновления (рекомендуется)",null,null,null,null,null,null,null,null,null,null,null,null,null,null,null,null,null,null,null,null,"y"]
[]
[null,null,null,null,null,"никогда не проверять наличие обновлений (не рекомендуется)"]

{"sheet":"Лог обновления","index":2,"n_rows":10,"n_cols":3,"rows_kept":10,"cut":false,"hidden":true,"merged":[]}
["Дата/Время","Сообщение","Статус"]
[]
["2014-05-05T13:09:09","Проверка доступных обновлений...","Информация"]
["2014-05-05T13:09:11","Версия шаблона 2.1.3 актуальна, обновление не требуется","Информация"]
["2014-05-05T14:44:00","Проверка доступных обновлений...","Информация"]
["2014-05-05T14:44:00","Версия шаблона 2.1.3 актуальна, обновление не требуется","Информация"]
["2014-05-05T16:31:51","Проверка доступных обновлений...","Информация"]
["2014-05-05T16:31:51","Версия шаблона 2.1.3 актуальна, обновление не требуется","Информация"]
["2014-05-05T16:41:00","Проверка доступных обновлений...","Информация"]
["2014-05-05T16:41:00","Версия шаблона 2.1.3 актуальна, обновление не требуется","Информация"]

{"sheet":"Титульный","index":3,"n_rows":54,"n_cols":6,"rows_kept":54,"cut":false,"hidden":false,"merged":[[4,4,4,5]]}
[null,null,null,null,null,26790798]
[]
[]
[null,null,null,null,null,{"$f":"version","v":"Версия 2.1.3"}]
[null,null,null,null,"Предложение об установлении тарифов в сфере водоотведения и о способах приобретения, стоимости и объемах товаров, необходимых для производства регулируемых товаров и (или) оказания регулируемых услуг"]
[]
[null,null,null,null,"Субъект РФ","Пермский край"]
[]
[null,null,null,null,"Публикация","На сайте регулирующего органа"]
[]
[null,null,null,null,"По желанию организации информация раскрыта в дополнительных источниках публикации?","да"]
[]
["да",null,null,null,"Указывать разбивку НВВ по полугодиям","да"]
[]
[null,null,null,null,null,"Период регулирования"]
["01.01.2015",null,null,null,"Начало очередного периода регулирования","01.01.2015"]
["31.12.2017",null,null,null,"Окончание очередного периода регулирования","31.12.2017"]
[]
[null,null,null,null,"Является ли данное юридическое лицо подразделением (филиалом) другой организации","да"]
[]
[null,null,null,null,"Наименование организации","ОАО \"Э.ОН Россия\""]
[null,null,null,null,"Наименование филиала","Яйвинская ГРЭС"]
[null,null,null,null,"ИНН","8602067092"]
[null,null,null,null,"КПП","591131001"]
[]
[null,null,null,null,"Вид деятельности","Оказание услуг в сфере водоснабжения, водоотведения и очистки сточных вод"]
[]
[null,null,null,null,"Режим налогообложения","общий"]
[]
[null,null,null,null,"Организация выполняет/планирует к выполнению инвестиционную программу","нет"]
[]
["тариф на водоотведение",null,null,null,"Тариф","тариф на водоотведение"]
[]
[null,null,null,null,"Наличие двухставочного тарифа","нет"]
[]
[null,null,null,null,"НДС (Отметка об учтенном НДС)","тариф указан без НДС для плательщиков НДС"]
[]
[null,null,null,null,null,"Адрес регулируемой организации"]
[null,null,null,null,"Юридический адрес","Российская Федерация, Тюменская область, Ханты-Мансийский АО-Югра, г.Сургут, ул. Энергстроителей, 23, сооружение 34"]
[null,null,null,null,"Почтовый адрес","618340, Пермский край, г.Александровск, пгт. Яйва, ул. Тимирязева, 5"]
[]
[null,null,null,null,null,"Руководитель"]
[null,null,null,null,"Фамилия, имя, отчество","Широков Максим Геннадьевич"]
[null,null,null,null,"(код) номер телефона","8(495)5453838*5050"]
[]
[null,null,null,null,null,"Главный бухгалтер"]
[null,null,null,null,"Фамилия, имя, отчество","Шаляпина Алла Васильевна"]
[null,null,null,null,"(код) номер телефона","8(495)5453838*5013"]
[]
[null,null,null,null,null,"Должностное лицо, ответственное за составление формы"]
[null,null,null,null,"Фамилия, имя, отчество","Михайлова И.А."]
[null,null,null,null,"Должность","начальник ПЭО"]
[null,null,null,null,"(код) номер телефона","Т +7 (34274) 2-43-55"]
[null,null,null,null,"e-mail","Mikhajlova_I@eon-russia.ru"]

{"sheet":"Список МО","index":4,"n_rows":16,"n_cols":8,"rows_kept":16,"cut":false,"hidden":false,"merged":[[13,3,14,3],[13,4,14,4],[3,3,3,7],[4,3,4,7],[6,5,6,7],[7,5,7,7],[8,5,8,7]]}
[]
[]
[]
[null,null,null,"Дифференциация тарифа"]
[null,null,null,{"$f":"IF(org=0,\"Не определено\",org)","v":"ОАО \"Э.ОН Россия\""}]
[]
[null,null,null,null,null,"Система коммунальной инфраструктуры"]
[null,null,null,null,"Условный порядковый номер",1]
[null,null,null,null,"Описание","водоотведение"]
[]
[null,null,null,"№ п/п","Муниципальный район","№ п/п","Муниципальное образование","ОКТМО"]
[null,null,null,"1","2","3","4","5"]
[null,null,null,0,null,0]
[null,null,null,1,"Александровский муниципальный район",1,"Яйвинское","57605158"]
[null,null,null,null,null,null,"Добавить МО"]
[null,null,null,null,"Добавить МР"]

{"sheet":"Стандарты","index":5,"n_rows":58,"n_cols":8,"rows_kept":58,"cut":false,"hidden":false,"merged":[[59,4,59,7],[4,3,4,7],[5,3,5,7],[17,0,19,0],[17,1,19,1],[20,0,22,0],[20,1,22,1],[23,0,25,0],[23,1,25,1],[26,0,28,0],[26,1,28,1],[29,0,31,0],[29,1,31,1],[32,0,34,0],[32,1,34,1]]}
[]
[]
[]
[null,null,null,null,null,null,null,"Приложение 3 к приказу ФСТ России от 15 мая 2013 г. N 129, Форма 3.11, Форма 3.12"]
[null,null,null,"Предложение об установлении тарифов в сфере водоотведения и о способах приобретения, стоимости и объемах товаров, необходимых для производства регулируемых товаров и (или) оказания регулируемых услуг"]
[null,null,null,{"$f":"IF(org=0,\"Не определено\",org)","v":"ОАО \"Э.ОН Россия\""}]
[]
[null,null,null,"№ п/п","Информация, подлежащая раскрытию","Значение","Ссылки на документы","Примечание"]
[null,null,null,"1","2","3","4","5"]
[null,null,null,"1","Информация о предложении регулируемой организации об установлении тарифов в сфере водоотведения и (или) очистки сточных вод на очередной период регулирования",null,null,0]
[null,null,null,"1.1","копия утвержденной в установленном порядке инвестиционной программы (проекта инвестиционной программы)"]
[null,null,null,"1.2","метод регулирования",null,null,0]
[null,"О",null,"1.2.1","с 01.01.2015 по 31.12.2015","метод индексации установленных тарифов",null,"-"]
[null,"О",null,"1.2.2","с 01.01.2016 по 31.12.2016","метод индексации установленных тарифов",null,"-"]
[null,"О",null,"1.2.3","с 01.01.2017 по 31.12.2017","метод индексации установленных тарифов",null,"-"]
[null,null,null,null,"Добавить метод"]
[null,null,null,"1.3","расчетная величина цен (тарифов)",null,null,0]
["1.3.1","О",null,{"$f":"A18","v":"1.3.1"},{"$f":"\"с 01.01.2015 по 30.06.2015\" & IF(double_rate_tariff=\"да\",,\", \"&unit_tariff_single_rate)","v":"с 01.01.2015 по 30.06.2015, руб/м3"},139.93,null,"руб. куб. м"]
[null,null,null,{"$f":"D18&\".1\"","v":"1.3.1.1"},{"$f":"TEHSHEET!$U$2&\", \" & unit_tariff_double_rate_p","v":"потребление, руб/м3"}]
[null,null,null,{"$f":"D18&\".2\"","v":"1.3.1.2"},{"$f":"TEHSHEET!$V$2&\", \" & unit_tariff_double_rate_c","v":"содержание,  тыс руб в месяц/м3/час"}]
["1.3.2","О",null,{"$f":"A21","v":"1.3.2"},{"$f":"\"с 01.07.2015 по 31.12.2015\" & IF(double_rate_tariff=\"да\",,\", \"&unit_tariff_single_rate)","v":"с 01.07.2015 по 31.12.2015, руб/м3"},622.73,null,"руб. куб. м"]
[null,null,null,{"$f":"D21&\".1\"","v":"1.3.2.1"},{"$f":"TEHSHEET!$U$2&\", \" & unit_tariff_double_rate_p","v":"потребление, руб/м3"}]
[null,null,null,{"$f":"D21&\".2\"","v":"1.3.2.2"},{"$f":"TEHSHEET!$V$2&\", \" & unit_tariff_double_rate_c","v":"содержание,  тыс руб в месяц/м3/час"}]
["1.3.3","О",null,{"$f":"A24","v":"1.3.3"},{"$f":"\"с 01.01.2016 по 30.06.2016\" & IF(double_rate_tariff=\"да\",,\", \"&unit_tariff_single_rate)","v":"с 01.01.2016 по 30.06.2016, руб/м3"},399.91,null,"руб. куб. м"]
[null,null,null,{"$f":"D24&\".1\"","v":"1.3.3.1"},{"$f":"TEHSHEET!$U$2&\", \" & unit_tariff_double_rate_p","v":"потребление, руб/м3"}]
[null,null,null,{"$f":"D24&\".2\"","v":"1.3.3.2"},{"$f":"TEHSHEET!$V$2&\", \" & unit_tariff_double_rate_c","v":"содержание,  тыс руб в месяц/м3/час"}]
["1.3.4","О",null,{"$f":"A27","v":"1.3.4"},{"$f":"\"с 01.07.2016 по 31.12.2016\" & IF(double_rate_tariff=\"да\",,\", \"&unit_tariff_single_rate)","v":"с 01.07.2016 по 31.12.2016, руб/м3"},399.91,null,"руб. куб. м"]
[null,null,null,{"$f":"D27&\".1\"","v":"1.3.4.1"},{"$f":"TEHSHEET!$U$2&\", \" & unit_tariff_double_rate_p","v":"потребление, руб/м3"}]
[null,null,null,{"$f":"D27&\".2\"","v":"1.3.4.2"},{"$f":"TEHSHEET!$V$2&\", \" & unit_tariff_double_rate_c","v":"содержание,  тыс руб в месяц/м3/час"}]
["1.3.5","О",null,{"$f":"A30","v":"1.3.5"},{"$f":"\"с 01.01.2017 по 30.06.2017\" & IF(double_rate_tariff=\"да\",,\", \"&unit_tariff_single_rate)","v":"с 01.01.2017 по 30.06.2017, руб/м3"},399.91,null,"руб. куб. м"]
[null,null,null,{"$f":"D30&\".1\"","v":"1.3.5.1"},{"$f":"TEHSHEET!$U$2&\", \" & unit_tariff_double_rate_p","v":"потребление, руб/м3"}]
[null,null,null,{"$f":"D30&\".2\"","v":"1.3.5.2"},{"$f":"TEHSHEET!$V$2&\", \" & unit_tariff_double_rate_c","v":"содержание,  тыс руб в месяц/м3/час"}]
["1.3.6","О",null,{"$f":"A33","v":"1.3.6"},{"$f":"\"с 01.07.2017 по 31.12.2017\" & IF(double_rate_tariff=\"да\",,\", \"&unit_tariff_single_rate)","v":"с 01.07.2017 по 31.12.2017, руб/м3"},438.89,null,"руб. куб. м"]
[null,null,null,{"$f":"D33&\".1\"","v":"1.3.6.1"},{"$f":"TEHSHEET!$U$2&\", \" & unit_tariff_double_rate_p","v":"потребление, руб/м3"}]
[null,null,null,{"$f":"D33&\".2\"","v":"1.3.6.2"},{"$f":"TEHSHEET!$V$2&\", \" & unit_tariff_double_rate_c","v":"содержание,  тыс руб в месяц/м3/час"}]
[null,null,null,null,"Добавить тариф"]
[null,null,null,"1.4","период действия тарифа",{"$f":"\"с \"&periodStart & \" по \" & periodEnd & \" гг.\"","v":"с 01.01.2015 по 31.12.2017 гг."},null,"-"]
[null,null,null,"1.5","долгосрочные параметры регулирования (в случае если их установление предусмотрено выбранным методом регулирования)","-",null,"-"]
[null,null,null,"1.6",{"$f":"\"необходимая валовая выручка на соответствующий период, в том числе с разбивкой по \" & IF(flag_NVV=\"да\",\"полугодиям, тыс руб:\", \"годам, тыс руб:\")","v":"необходимая валовая выручка на соответствующий период, в том числе с разбивкой по полугодиям, тыс руб:"},{"$f":"SUM(F40:F46)","v":91525.435340780532},null,"-"]
[null,"О",null,"1.6.1","с 01.01.2015 по 30.06.2015",5333.61705374753,null,"тыс.руб"]
[null,"О",null,"1.6.2","с 01.07.2015 по 31.12.2015",23735.354108547901,null,"тыс.руб"]
[null,"О",null,"1.6.3","с 01.01.2016 по 30.06.2016",15242.675294779699,null,"тыс.руб"]
[null,"О",null,"1.6.4","с 01.07.2016 по 31.12.2016",15242.675294779699,null,"тыс.руб"]
[null,"О",null,"1.6.5","с 01.01.2017 по 30.06.2017",15242.675294779699,null,"тыс.руб"]
[null,"О",null,"1.6.6","с 01.07.2017 по 31.12.2017",16728.438294145999,null,"тыс.руб"]
[null,null,null,null,"Добавить НВВ"]
[null,null,null,"1.7",{"$f":"\"годовой объем отпущенной в сеть воды, \"&unit_tariff_useful_output","v":"годовой объем отпущенной в сеть воды, тыс м3"},null,null,0]
[null,"О",null,"1.7.1","с 01.01.2015 по 31.12.2015",76.23,null,"млн. куб. м"]
[null,"О",null,"1.7.2","с 01.01.2016 по 31.12.2016",76.23,null,"млн. куб. м"]
[null,"О",null,"1.7.3","с 01.01.2017 по 31.12.2017",76.23,null,"млн. куб. м"]
[null,null,null,null,"Добавить объём"]
[null,null,null,"1.8","размер экономически обоснованных расходов, не учтенных при регулировании тарифов в предыдущий период регулирования (при их наличии), определенном в соответствии с законодательством Российской Федерации, тыс руб",0,null,"-"]
[null,null,null,"1.9","размер недополученных доходов регулируемой организацией (при их наличии), исчисленном в соответствии с основами ценообразования в сфере водоснабжения и водоотведения, утверждаемыми Правительством Российской Федерации, тыс руб",0,null,"-"]
[null,null,null,"2","Информация о способах приобретения, стоимости и об объемах товаров, необходимых для производства регулируемых товаров и(или) оказания регулируемых услуг регулируемой организацией",null,null,0]
[null,null,null,"2.1","сведения о правовых актах, регламентирующих правила закупки (положение о закупках) в регулируемой организации","http://www.eon-russia.ru/purchase/",null,"-"]
[null,null,null,"2.2","сведения о месте размещения положения о закупках регулируемой организации","http://www.eon-russia.ru/purchase/",null,"-"]
[null,3,null,"2.3","сведения о планировании закупочных процедур и результатах их проведения","http://www.eon-russia.ru/purchase/",null,"-"]
[null,null,null,null,"Добавить сведения"]

{"sheet":"Ссылки на публикации","index":6,"n_rows":15,"n_cols":8,"rows_kept":15,"cut":false,"hidden":false,"merged":[[10,0,11,0],[10,4,10,7],[12,0,13,0],[12,4,12,7],[4,3,4,7],[5,3,5,7]]}
[]
[]
[]
[]
[null,null,null,"Ссылки на публикации"]
[null,null,null,{"$f":"IF(org=0,\"Не определено\",org)","v":"ОАО \"Э.ОН Россия\""}]
[]
[]
[null,null,null,"№ п/п","Содержание","Наименование сайта","Дата размещения информации","Адрес страницы сайта в сети \"Интернет\", на которой размещена информация"]
[null,null,null,"1","2","3","4","5"]
["1",null,null,{"$f":"A11","v":"1"},"Информация о способах приобретения, стоимости и объемах товаров, необходимых для производства регулируемых товаров и (или) оказания регулируемых услуг регулируемой организацией, содержит сведения о правовых актах, регламентирующих правила закупки (положение о закупках) в регулируемой организации, а также о месте размещения положения о закупках регулируемой организации, информации о планировании конкурсных процедур и результатах их проведения (п. 46 Постановления Правительства Российской Федерации от 17 января 2013 г. N 6 \"О стандартах раскрытия информации в сфере водоснабжения и водоотведения\") \n\n"]
[null,null,null,{"$f":"A11&\".1\"","v":"1.1"},"Сайт организации в сети Интернет","официальный сайт Э.ОН Россия\"","05.05.2014","http://www.eon-russia.ru/RU/Branches/YajvinskayaGRES/SitePages/ForCustomers.aspx"]
["2",null,null,{"$f":"A13","v":"2"},"Информация о предложении регулируемой организации об установлении тарифов в сфере горячего водоснабжения на очередной период регулирования (п.47 Постановления Правительства Российской Федерации от 17 января 2013 г. N 6 \"О стандартах раскрытия информации в сфере водоснабжения и водоотведения\")"]
[null,null,null,{"$f":"A13&\".1\"","v":"2.1"},"Сайт организации в сети Интернет","официальный сайт Э.ОН Россия\"","05.05.2014","http://www.eon-russia.ru/RU/Branches/YajvinskayaGRES/SitePages/ForCustomers.aspx"]
[null,null,null,null,"Добавить"]

{"sheet":"Комментарии","index":7,"n_rows":14,"n_cols":5,"rows_kept":14,"cut":false,"hidden":false,"merged":[[6,3,6,4],[7,3,7,4]]}
[]
[]
[]
[]
[]
[]
[null,null,null,"Комментарии"]
[null,null,null,{"$f":"IF(org=0,\"Не определено\",org)","v":"ОАО \"Э.ОН Россия\""}]
[]
[null,null,null,"№ п/п","Комментарий"]
[null,null,null,"1","2"]
[null,null,null,0]
[null,null,"О",1,"лист Ссылки на публикации в п.2 информация указана о предложении регулируемой организации об установлении тарифов в сфере водоотведения"]
[null,null,null,null,"Добавить"]

{"sheet":"Проверка","index":8,"n_rows":9,"n_cols":4,"rows_kept":9,"cut":false,"hidden":false,"merged":[[1,1,1,3]]}
[]
[null,"Результат проверки"]
[]
[null,"Ссылка","Причина","Статус"]
[null,"Стандарты!G38","Не указано значение!","Предупреждение"]
[null,"Стандарты!G55","Не указано значение!","Предупреждение"]
[null,"Стандарты!G56","Не указано значение!","Предупреждение"]
[null,"Стандарты!G57","Не указано значение!","Предупреждение"]
[null,"Стандарты!F38","Не верно указана гиперссылка в поле 'Адрес сайта в сети Интернет' на листе 'Стандарты'!","Предупреждение"]

{"sheet":"AllSheetsInThisWorkbook","index":9,"n_rows":24,"n_cols":2,"rows_kept":24,"cut":false,"hidden":true,"merged":[]}
["Расчетные листы","Скрытые листы"]
["Инструкция","modProv"]
["Лог обновления","AllSheetsInThisWorkbook"]
["Титульный","TEHSHEET"]
["Список МО","et_union_hor"]
["Стандарты","et_union_vert"]
["Ссылки на публикации","modInfo"]
["Комментарии","modRegion"]
["Проверка","modReestr"]
[null,"modfrmReestr"]
[null,"modUpdTemplMain"]
[null,"REESTR_ORG"]
[null,"modClassifierValidate"]
[null,"modHyp"]
[null,"modList00"]
[null,"modList01"]
[null,"modList02"]
[null,"modList03"]
[null,"modfrmDateChoose"]
[null,"modComm"]
[null,"modThisWorkbook"]
[null,"REESTR_MO"]
[null,"modfrmReestrMR"]
[null,"modfrmCheckUpdates"]

{"sheet":"TEHSHEET","index":10,"n_rows":85,"n_cols":23,"rows_kept":85,"cut":false,"hidden":true,"merged":[[0,20,0,21],[0,19,1,19],[0,22,1,22]]}
["REGION",null,"year_list","logical","Месяц\n(MONTH)","Квартал\n(QUARTER)","Месяц\n(kind_of_publication)","Режим налогообложения\n/kind_of_NDS/","Номер СЦХВ(СЦВО)\n/SKI_number/","Единица измерения объема оказываемых услуг ГВС\n/kind_of_unit_GVS/","Метод регулирования\n/kind_of_control_method/",null,null,"версия шаблона\n (DocProp_Version)","6.0",null,null,null,"виды групп товаров\n/kind_group_rates/","Одноставочный","Двухставочный",null,"Полезный отпуск"]
["Алтайский край",null,2013,"да","январь","I квартал","На официальном сайте организации","общий","1","тыс.куб.м/сутки","метод экономически обоснованных расходов (затрат)",null,null,"код шаблона\n(DocProp_TemplateCode)","JKH.OPEN.INFO.QUARTER.GVS",null,null,null,null,null,{"$f":"IF(group_rates=$S$6,\"нагрузка\",\"потребление\")","v":"потребление"},{"$f":"IF(group_rates=$S$6,\"протяженность сети\",\"содержание\")","v":"содержание"}]
["Амурская область",null,2014,"нет","февраль","II квартал","На сайте регулирующего органа","общий с учетом освобождения от уплаты НДС","2","Гкал/час","метод индексации установленных тарифов",null,null,"сфера\n(TSphere)","ГВС",null,null,null,"единица измерения для листа Стандарты\n/unit_tariff/","руб/м3","руб/м3"," тыс руб в месяц/м3/час","тыс м3"]
["Архангельская область",null,2015,null,"март","III квартал",null,"специальный (упрощенная система налогообложения, система налогообложения для сельскохозяйственных товаропроизводителей)","3","куб.м/час","метод обеспечения доходности инвестированного капитала",null,null,"сфера(латиница)\n(TSphere_trans)","GVS",null,null,null,"тариф на водоотведение","руб/м3","руб/м3"," тыс руб в месяц/м3/час","тыс м3"]
["Астраханская область",null,2016,null,"апрель","IV квартал",null,null,"4",null,"метод сравнения аналогов",null,null,"сфера расширено\n(TSphere_full)","горячего водоснабжения",null,null,null,"тариф на транспортировку сточных вод","руб/м3","руб/м3"," тыс руб в месяц/м3/час","тыс м3"]
["Белгородская область",null,2017,null,"май",null,null,"НДС для общего режима налогообложения\n/kind_of_NDS_tariff/","5",null,"метод установления фиксированных тарифов",null,null,null,null,null,null,null,"тариф на подключение к централизованной системе водоотведения","-","руб/м3/час","руб/км","тыс м3"]
["Брянская область",null,null,null,"июнь",null,null,"тариф указан с НДС для плательщиков НДС","6",null,"метод установления предельных тарифов"]
["Владимирская область",null,null,null,"июль",null,null,"тариф указан без НДС для плательщиков НДС","7"]
["Волгоградская область",null,null,null,"август",null,null,null,"8"]
["Вологодская область",null,null,null,"сентябрь",null,null,"НДС для прочих режимов налогообложения\n/kind_of_NDS_tariff_etc/","9"]
["Воронежская область",null,null,null,"октябрь",null,null,"тариф для организаций не являющихся плательщиками НДС","10"]
["г.Байконур",null,null,null,"ноябрь",null,null,null,"11"]
["г. Москва",null,null,null,"декабрь",null,null,null,"12"]
["г.Санкт-Петербург",null,null,null,null,null,null,null,"13"]
["Еврейская автономная область",null,null,null,null,null,null,null,"14"]
["Забайкальский край",null,null,null,null,null,null,null,"15"]
["Ивановская область",null,null,null,null,null,null,null,"16"]
["Иркутская область",null,null,null,null,null,null,null,"17"]
["Кабардино-Балкарская республика",null,null,null,null,null,null,null,"18"]
["Калининградская область",null,null,null,null,null,null,null,"19"]
["Калужская область",null,null,null,null,null,null,null,"20"]
["Камчатский край"]
["Карачаево-Черкесская республика"]
["Кемеровская область"]
["Кировская область"]
["Костромская область"]
["Краснодарский край"]
["Красноярский край"]
["Курганская область"]
["Курская область"]
["Ленинградская область"]
["Липецкая область"]
["Магаданская область"]
["Московская область"]
["Мурманская область"]
["Ненецкий автономный округ"]
["Нижегородская область"]
["Новгородская область"]
["Новосибирская область"]
["Омская область"]
["Оренбургская область"]
["Орловская область"]
["Пензенская область"]
["Пермский край"]
["Приморский край"]
["Псковская область"]
["Республика Адыгея"]
["Республика Алтай"]
["Республика Башкортостан"]
["Республика Бурятия"]
["Республика Дагестан"]
["Республика Ингушетия"]
["Республика Калмыкия"]
["Республика Карелия"]
["Республика Коми"]
["Республика Марий Эл"]
["Республика Мордовия"]
["Республика Саха (Якутия)"]
["Республика Северная Осетия-Алания"]
["Республика Татарстан"]
["Республика Тыва"]
["Республика Хакасия"]
["Ростовская область"]
["Рязанская область"]
["Самарская область"]
["Саратовская область"]
["Сахалинская область"]
["Свердловская область"]
["Смоленская область"]
["Ставропольский край"]
["Тамбовская область"]
["Тверская область"]
["Томская область"]
["Тульская область"]
["Тюменская область"]
["Удмуртская республика"]
["Ульяновская область"]
["Хабаровский край"]
["Ханты-Мансийский автономный округ"]
["Челябинская область"]
["Чеченская республика"]
["Чувашская республика"]
["Чукотский автономный округ"]
["Ямало-Ненецкий автономный округ"]
["Ярославская область"]

{"sheet":"et_union_hor","index":11,"n_rows":43,"n_cols":7,"rows_kept":43,"cut":false,"hidden":true,"merged":[[15,0,16,0],[3,4,4,4],[3,3,4,3],[15,4,15,7],[27,0,29,0],[27,1,29,1]]}
[]
["et_List01","et_List01_1"]
[]
[null,null,null,null,null,1]
[null,null,null,null,null,null,"Добавить МО"]
[]
[]
["et_Comm"]
[]
[]
[]
[]
["et_List03"]
[]
[]
[null,null,null,{"$f":"A16","v":0}]
[null,null,null,{"$f":"A16&\".1\"","v":".1"},"Сайт организации в сети Интернет"]
[]
[]
[]
["et_List02_1"]
[]
[null,null,null,null,{"$f":"\"с \"&periodStart & \" по \" & periodEnd","v":"с 01.01.2015 по 31.12.2017"}]
[]
[]
["et_List02_2"]
[]
[null,null,null,{"$f":"A28","v":0},{"$f":"\"с \"&periodStart & \" по \" & periodEnd & IF(double_rate_tariff=\"да\",,\", \"&unit_tariff_single_rate)","v":"с 01.01.2015 по 31.12.2017, руб/м3"}]
[null,null,null,{"$f":"D28&\".1\"","v":"0.1"},{"$f":"TEHSHEET!$U$2&\", \" & unit_tariff_double_rate_p","v":"потребление, руб/м3"}]
[null,null,null,{"$f":"D28&\".2\"","v":"0.2"},{"$f":"TEHSHEET!$V$2&\", \" & unit_tariff_double_rate_c","v":"содержание,  тыс руб в месяц/м3/час"}]
[]
[]
["et_List02_3"]
[]
[null,null,null,null,{"$f":"\"с \"&periodStart & \" по \" & periodEnd","v":"с 01.01.2015 по 31.12.2017"}]
[]
[]
["et_List02_4"]
[]
[null,null,null,null,{"$f":"\"с \"&periodStart & \" по \" & periodEnd","v":"с 01.01.2015 по 31.12.2017"}]
[]
[]
["et_List02_5"]

{"sheet":"et_union_vert","index":12,"n_rows":0,"n_cols":0,"rows_kept":0,"cut":false,"hidden":true,"merged":[]}

{"sheet":"modInfo","index":13,"n_rows":17,"n_cols":2,"rows_kept":17,"cut":false,"hidden":true,"merged":[]}
[null,"Титульный"]
[null,"Для выбора того или иного источника публикации выполните двойной щелчок по синей ячейке напротив соответствующего источника.\nВНИМАНИЕ! Если Вы снимаете галочку с пункта, то будут скрыты и очищены соответствующие строки на листе \"Ссылки на публикации\"!\n\nОпубликование перечисленных в шаблоне показателей на сайте организации в сети Интернет и в печатных изданиях не обязательно, если данный шаблон предоставлен по системе ЕИАС (региональный сегмент)."]
[null,"Обязательное опубликование на официальном сайте органа исполнительной власти субъекта Российской Федерации в области государственного регулирования тарифов (на официальном сайте органа местного самоуправления поселения или городского округа в случае передачи законом субъекта Российской Федерации полномочий по утверждению тарифов в сфере водоснабжения и водоотведения органам местного самоуправления) предусмотрено пунктом 3 (а) постановления Правительства №6 от 17.01.2013"]
[null,"Задайте период регулирования, выбрав даты начала и окончания очередного периода регулирования из календаря (иконка справа от указанной ячейки), либо введите дату непосредственно в ячейку в формате - 'ДД.ММ.ГГГГ'"]
[null,"Шаблон заполняется раздельно по каждому виду тарифа"]
[null,"Ссылки на публикации"]
[null,"Вводите адрес сайта, не нарушая цвет ячейки /если копируете гиперссылку из браузера, то выполните двойной щелчок по ячейке и только после этого можете вставить скопированный элемент/"]
[null,"Обосновывающие материалы (документы) необходимо загружать с помощью \"ЕИАС Мониторинг\". Ссылка на инструкцию по загрузке обосновывающих материалов (документов) расположена на листе 'Инструкция' в п.'Методология заполнения'.\n\nВвводите ссылку, не нарушая цвет ячейки /если копируете гиперссылку из браузера, то выполните двойной щелчок по ячейке и только после этого можете вставить скопированный элемент/."]
[null,"Если для какого-либо пункта графы 'Наименование источника (сайта или печатного издания)' информация не раскрывалась, то в соответствующем поле укажите - 'не раскрывалась'"]
[null,"Список МО"]
[null,"В случае, если тариф не дифференцируется по системам коммунальной инфраструктуры, перечислите все муниципальные районы, в которых организация осуществляет услуги водоотведения и (или) очистки сточных вод"]
[null,"В случае, если тариф не дифференцируется по системам коммунальной инфраструктуры, перечислите все муниципальные образования, в которых организация осуществляет услуги водоотведения и (или) очистки сточных вод"]
[null,"Признак дифференциации тарифа"]
[null,"В случае, если тариф не дифференцируется по системам водоотведения, укажите '1'. Введите значение от 1 до 100, чтобы указать очередной условный порядковый номер системы водоотведения"]
[null,"Стандарты"]
[null,"В качестве примечания Вы можете указать единицу измерения"]
[null,{"$f":"\"Укажите в ячейке \" & ADDRESS(ROW(Стандарты!F38),COLUMN(Стандарты!F38),4,TRUE) & \", ссылку на решение об утверждении долгосрочных параметров регулирования, размещенное в сети Интернет, либо укажите в ячейке \" & ADDRESS(ROW(Стандарты!G38),COLUMN(Стандарты!G38),4,TRUE) & \" ссылку на материалы Хранилища\"","v":"Укажите в ячейке F38, ссылку на решение об утверждении долгосрочных параметров регулирования, размещенное в сети Интернет, либо укажите в ячейке G38 ссылку на материалы Хранилища"}]

{"sheet":"modRegion","index":14,"n_rows":0,"n_cols":0,"rows_kept":0,"cut":false,"hidden":true,"merged":[]}

{"sheet":"modReestr","index":15,"n_rows":0,"n_cols":0,"rows_kept":0,"cut":false,"hidden":true,"merged":[]}

{"sheet":"modfrmReestr","index":16,"n_rows":0,"n_cols":0,"rows_kept":0,"cut":false,"hidden":true,"merged":[]}

{"sheet":"modUpdTemplMain","index":17,"n_rows":0,"n_cols":0,"rows_kept":0,"cut":false,"hidden":true,"merged":[]}

{"sheet":"REESTR_ORG","index":18,"n_rows":169,"n_cols":12,"rows_kept":169,"cut":false,"hidden":true,"merged":[]}
["№","NSRF","MR_NAME","OKTMO_MR_NAME","MO_NAME","OKTMO_NAME","RST_ORG_ID","ORG_NAME","INN_NAME","KPP_NAME","VDET_NAME"]
[1,"Пермский край","Чердынский муниципальный район","57656000","Ныробское","57656157","26772104","АУ \"Ныроб-тепло\"","5919013100","591901001","Оказание услуг в сфере водоотведения и очистки сточных вод","VO"]
[2,"Пермский край","Суксунский муниципальный район","57651000","Киселевское","57651410","27265111","Администрация Киселевского сельского поселения","5951041688","595101001","Оказание услуг в сфере водоснабжения, водоотведения и очистки сточных вод","VO"]
[3,"Пермский край","","","","","26353714","Арланское нефтепроводное управление филиал ОАО \"Уралсибнефтепровод\"","0278039018","022702001","Оказание услуг в сфере очистки сточных вод","VO"]
[4,"Пермский край","Очерский муниципальный район","57644000","Очерское","57644101","26512451","ГБОУ СПО \"Строгановский колледж\"","5947009096","594701001","Оказание услуг по перекачке","VO"]
[5,"Пермский край","","","","","26808802","Горьковская дирекция по тепловодоснабжению структурное подразделение Центральной дирекции по тепловодоснабжению - филиала ОАО \"РЖД\"","7708503727","525745041","Оказание услуг в сфере водоснабжения, водоотведения и очистки сточных вод","VO"]
[6,"Пермский край","Кунгурский муниципальный район","57630000","Голдыревское","57630407","26513715","ЗАО \"Кунгурская ПМК-2\"","5940200456","591701001","Оказание услуг в сфере водоснабжения, водоотведения и очистки сточных вод","VO"]
[7,"Пермский край","Пермский муниципальный район","57646000","Усть-Качкинское","57646458","26512518","ЗАО \"Курорт \"Усть-Качка\"","5948001710","594801001","Оказание услуг в сфере водоснабжения, водоотведения и очистки сточных вод","VO"]
[8,"Пермский край","Пермский городской округ","57701000","Пермский городской округ","57701000","26506227","ЗАО \"Сибур-Химпром\"","5905018998","590501001","Оказание услуг в сфере водоотведения и очистки сточных вод","VO"]
[9,"Пермский край","Пермский городской округ","57701000","Пермский городской округ","57701000","26506080","ЗАО Новомет-Пермь","5904002096","590150001","Оказание услуг по перекачке","VO"]
[10,"Пермский край","Кунгурский городской округ","57722000","Кунгурский городской округ","57722000","26508525","КГМУП Водоканал","5917100213","591701001","Оказание услуг в сфере водоснабжения, водоотведения и очистки сточных вод","VO"]
[11,"Пермский край","Кишертский муниципальный район","57624000","Усть-Кишертское","57624428","28425612","Кишертское МУП \"Водоканал\"","5917001149","591701001","Оказание услуг в сфере водоснабжения, водоотведения и очистки сточных вод","VO"]
[12,"Пермский край","Соликамский муниципальный район","57650000","Половодовское","57650428","28466199","МБУ \"Половодовское хозяйство\"","5919014055","591901001","Оказание услуг в сфере водоснабжения, водоотведения и очистки сточных вод","VO"]
[13,"Пермский край","Усольский муниципальный район","57653000","Усольское","57653101","26512534","МКП \"Пыскорское\"","5911044940","591101001","Оказание услуг в сфере водоснабжения, водоотведения и очистки сточных вод","VO"]
[14,"Пермский край","Александровский муниципальный район","57605000","Всеволодо-Вильвенское","57605154","27735033","МКП ВВГП \"Вильва-Водоканал\"","5911066936","591101001","Оказание услуг в сфере водоснабжения, водоотведения и очистки сточных вод","VO"]
[15,"Пермский край","Пермский городской округ","57701000","Пермский городской округ","57701000","27984860","МП \"Пермводоканал\"","5906000986","590401001","Оказание услуг в сфере очистки сточных вод","VO"]
[16,"Пермский край","Лысьвенский городской округ","57632000","Лысьвенский городской округ","57632000","26508808","МУ \"Служба заказчика ЖКУ\"","5918012094","591801001","Оказание услуг в сфере водоснабжения, водоотведения и очистки сточных вод","VO"]
[17,"Пермский край","Верещагинский муниципальный район","57612000","Бородульское","57612404","26511452","МУП \"Бородульское ЖКХ\"","5933005831","593301001","Оказание услуг в сфере водоснабжения, водоотведения и очистки сточных вод","VO"]
[18,"Пермский край","Ильинский муниципальный район","57620000","Ильинское","57620151","26511572","МУП \"Велес\"","5907030581","590701001","Оказание услуг по перекачке","VO"]
[19,"Пермский край","Верещагинский муниципальный район","57612000","Верещагинское","57612101","26511454","МУП \"Верещагинские водоканализационные сети\"","5933200159","593301001","Оказание услуг в сфере водоснабжения, водоотведения и очистки сточных вод","VO"]
[20,"Пермский край","Кудымкарский муниципальный район","57821000","Верх-Иньвенское","57821408","26512548","МУП \"Верх-Иньвенское ЖКХ\"","5981000791","598101001","Оказание услуг в сфере водоснабжения, водоотведения и очистки сточных вод","VO"]
[21,"Пермский край","Красновишерский муниципальный район","57626000","Верх-Язьвинское","57626413","26511972","МУП \"Верх-Язьвинское\"","5919006625","591901001","Оказание услуг в сфере водоснабжения, водоотведения и очистки сточных вод","VO"]
[22,"Пермский край","Еловский муниципальный район","57618000","Еловское","57618407","28236726","МУП \"Водоканал \"Еловский\"","5944205529","594401001","Оказание услуг в сфере водоотведения и очистки сточных вод","VO"]
[23,"Пермский край","Горнозаводский муниципальный район","57614000","Пашийское","57614404","28448792","МУП \"Водоканал\"","5934010841","593401001","Оказание услуг в сфере водоснабжения, водоотведения и очистки сточных вод","VO"]
[24,"Пермский край","Краснокамский муниципальный район","57627000","Краснокамское","57627101","26791118","МУП \"Водоканал\"","5916000216","591601001","Оказание услуг в сфере водоснабжения, водоотведения и очистки сточных вод","VO"]
[25,"Пермский край","Чайковский муниципальный район","57654000","Чайковское","57654101","26474160","МУП \"Водоканал\"","5920005217","592001001","Оказание услуг в сфере водоснабжения, водоотведения и очистки сточных вод","VO"]
[26,"Пермский край","Красновишерский муниципальный район","57626000","Красновишерское","57626101","26511981","МУП \"Водоканал-1\"","5941949576","594101001","Оказание услуг в сфере водоснабжения, водоотведения и очистки сточных вод","VO"]
[27,"Пермский край","Осинский муниципальный район","57640000","Осинское","57640101","26512413","МУП \"Водоканал-Оса\"","5944001162","594401001","Оказание услуг в сфере водоснабжения, водоотведения и очистки сточных вод","VO"]
[28,"Пермский край","Кунгурский муниципальный район","57630000","Комсомольское","57630429","26511601","МУП \"ЖКХ Комсомольское\"","5917594890","591701001","Оказание услуг в сфере водоснабжения, водоотведения и очистки сточных вод","VO"]
[29,"Пермский край","Губахинский городской округ","57617000","Губахинский городской округ","57617000","26508601","МУП \"ЖКХ Тепловодосервис\"","5921029620","592101001","Оказание услуг в сфере водоснабжения, водоотведения и очистки сточных вод","VO"]
[30,"Пермский край","Кунгурский муниципальный район","57630000","Неволинское","57630443","26511605","МУП \"ЖКХ\"","5917594234","591701001","Оказание услуг в сфере водоснабжения, водоотведения и очистки сточных вод","VO"]
[31,"Пермский край","Нытвенский муниципальный район","57634000","Шерьинское","57634431","26512380","МУП \"ЖКХ\" с.Шерья","5916016022","591601001","Оказание услуг в сфере водоснабжения, водоотведения и очистки сточных вод","VO"]
[32,"Пермский край","Верещагинский муниципальный район","57612000","Зюкайское","57612409","28428230","МУП \"Зюкайские тепловые сети\"","5933009089","593301001","Оказание услуг в сфере водоснабжения, водоотведения и очистки сточных вод","VO"]
[33,"Пермский край","Верещагинский муниципальный район","57612000","Зюкайское","57612409","26511510","МУП \"Зюкайский комбинат ЖКХ\"","5933180978","593301001","Оказание услуг в сфере водоснабжения, водоотведения и очистки сточных вод","VO"]
[34,"Пермский край","Верещагинский муниципальный район","57612000","Нижнегалинское","57612411","26511516","МУП \"КЖКХ НСП\"","5933005447","593301001","Оказание услуг в сфере водоснабжения, водоотведения и очистки сточных вод","VO"]
[35,"Пермский край","Октябрьский муниципальный район","57636000","Сарсинское","57636156","26512399","МУП \"Комфорт\"","5951043188","595101001","Оказание услуг в сфере водоснабжения, водоотведения и очистки сточных вод","VO"]
[36,"Пермский край","Куединский муниципальный район","57628000","Куединское","57628426","26511597","МУП \"Куединская ЖЭС\"","5939006567","593901001","Оказание услуг в сфере водоотведения и очистки сточных вод","VO"]
[37,"Пермский край","Губахинский городской округ","57617000","Губахинский городской округ","57617000","26508595","МУП \"МПО ЖКХ Северный\"","5913004808","592101001","Оказание услуг в сфере водоснабжения, водоотведения и очистки сточных вод","VO"]
[38,"Пермский край","Горнозаводский муниципальный район","57614000","Медведкинское","57614403","26511537","МУП \"Медведкинское ЖКХ\"","5921022007","592101001","Оказание услуг в сфере водоснабжения, водоотведения и очистки сточных вод","VO"]
[39,"Пермский край","Суксунский муниципальный район","57651000","Суксунское","57651151","26512530","МУП \"Суксунская коммунальная служба\"","5951006838","595101001","Оказание услуг в сфере очистки сточных вод","VO"]
[40,"Пермский край","Оханский муниципальный район","57642000","Таборское","57642425","26512439","МУП \"Таборское ЖКХ\"","5947015445","594701001","Оказание услуг в сфере водоснабжения, водоотведения и очистки сточных вод","VO"]
[41,"Пермский край","Кизеловский муниципальный район","57623000","Кизеловское","57623101","27606615","МУП \"Тепловодснаб\"","5911065361","591101001","Оказание услуг в сфере водоснабжения, водоотведения и очистки сточных вод","VO"]
[42,"Пермский край","Горнозаводский муниципальный район","57614000","Теплогорское","57614406","27910380","МУП \"Теплогорский ТЭК\"","5921029370","592101001","Оказание услуг в сфере водоснабжения, водоотведения и очистки сточных вод","VO"]
[43,"Пермский край","Нытвенский муниципальный район","57634000","Нытвенское","57634101","26512327","МУП \"Теплосеть\"","5916024143","591601001","Оказание услуг по перекачке","VO"]
[44,"Пермский край","Оханский муниципальный район","57642000","Тулумбаихинское","57642420","26512441","МУП \"Тулумбаихинское ЖКХ\"","5947015438","594701001","Оказание услуг в сфере водоснабжения, водоотведения и очистки сточных вод","VO"]
[45,"Пермский край","Уинский муниципальный район","57652000","Уинское","57652416","26653168","МУП \"Уинское ЖКХ\"","5951043685","595101001","Оказание услуг в сфере водоснабжения, водоотведения и очистки сточных вод","VO"]
[46,"Пермский край","Юсьвинский муниципальный район","57827000","Юсьвинское","57827428","26512552","МУП \"Юсьвинское ЖКХ\"","8102000974","810201001","Оказание услуг в сфере водоснабжения, водоотведения и очистки сточных вод","VO"]
[47,"Пермский край","Нытвенский муниципальный район","57634000","Григорьевское","57634404","26802287","МУП «Григорьевское дорожно-ремонтное предприятие»","5916022040","591601001","Оказание услуг в сфере водоснабжения, водоотведения и очистки сточных вод","VO"]
[48,"Пермский край","Гремячинский муниципальный район","57615000","Гремячинское","57615101","26833563","МУП Водоканал","5912002653","591201001","Оказание услуг в сфере водоотведения и очистки сточных вод","VO"]
[49,"Пермский край","Губахинский городской округ","57617000","Губахинский городской округ","57617000","26508569","МУП Водоканал","5913001162","592101001","Оказание услуг в сфере водоснабжения, водоотведения и очистки сточных вод","VO"]
[50,"Пермский край","Чусовской муниципальный район","57658000","Чусовское","57658101","26508888","МУП Горводоканал","5921000780","592101001","Оказание услуг в сфере водоснабжения, водоотведения и очистки сточных вод","VO"]
[51,"Пермский край","Бардымский муниципальный район","57604000","Бардымское","57604407","26511371","МУП ЖКХ \"Бардымское\"","5930000017","593001001","Оказание услуг в сфере водоснабжения, водоотведения и очистки сточных вод","VO"]
[52,"Пермский край","Очерский муниципальный район","57644000","Павловское","57644154","26512472","МУП ЖКХ \"Восход\"","5947015928","594701001","Оказание услуг в сфере водоснабжения, водоотведения и очистки сточных вод","VO"]
[53,"Пермский край","Поселок Звездный (ЗАТО)","57763000","Звездный","57763001","26512544","МУП ЖКХ \"Гарант\"","5904082447","590401001","Оказание услуг в сфере водоснабжения, водоотведения и очистки сточных вод","VO"]
[54,"Пермский край","Частинский муниципальный район","57655000","Частинское","57655425","26512538","МУП ЖКХ \"Факел\"","5955002457","595501001","Оказание услуг в сфере водоснабжения, водоотведения и очистки сточных вод","VO"]
[55,"Пермский край","Нытвенский муниципальный район","57634000","Чекменевское","57634428","26512374","МУП ЖКХ \"Чекменевское\"","5916017227","591601001","Оказание услуг в сфере водоснабжения, водоотведения и очистки сточных вод","VO"]
[56,"Пермский край","Сивинский муниципальный район","57648000","Сивинское","57648434","26512524","МУП ЖКХ Сивинское","5949000074","593301001","Оказание услуг в сфере водоснабжения, водоотведения и очистки сточных вод","VO"]
[57,"Пермский край","Нытвенский муниципальный район","57634000","Новоильинское","57634153","26512299","МУП ЖКХ п. Новоильинский","5942002121","594201001","Оказание услуг в сфере водоснабжения, водоотведения и очистки сточных вод","VO"]
[58,"Пермский край","Губахинский городской округ","57617000","Губахинский городской округ","57617000","26508586","МУП ЖКХ п.Углеуральский","5913004117","592101001","Оказание услуг в сфере водоснабжения, водоотведения и очистки сточных вод","VO"]
[59,"Пермский край","Лысьвенский городской округ","57632000","Лысьвенский городской округ","57632000","28112135","МУУП \"Теплоэнергоремонт\"","5918011573","591801001","Оказание услуг в сфере водоснабжения, водоотведения и очистки сточных вод","VO"]
[60,"Пермский край","Пермский городской округ","57701000","Пермский городской округ","57701000","26506307","ОАО \"ГалоПолимер Пермь\"","5908007560","590801001","Оказание услуг в сфере водоотведения и очистки сточных вод","VO"]
[61,"Пермский край","Добрянский муниципальный район","57616000","Полазненское","57616157","26508795","ОАО \"Исток\"","5914025695","591401001","Оказание услуг в сфере водоснабжения, водоотведения и очистки сточных вод","VO"]
[62,"Пермский край","Пермский городской округ","57701000","Пермский городской округ","57701000","27602175","ОАО \"Компания ЮНИМИЛК\" филиал \"Молочный Комбинат \"Пермский\"","7714626332","771401001","Оказание услуг по перекачке","VO"]
[63,"Пермский край","Березниковский городской округ","57708000","Березниковский городской округ","57708000","26513139","ОАО \"Корпорация ВСМПО-АВИСМА\"","6607000556","591102001","Оказание услуг в сфере водоснабжения, водоотведения и очистки сточных вод","VO"]
[64,"Пермский край","Кудымкарский городской округ","57851000","Кудымкарский городской округ","57851000","26512546","ОАО \"Кудымкарский водоканал\"","5981004122","598101001","Оказание услуг в сфере водоснабжения, водоотведения и очистки сточных вод","VO"]
[65,"Пермский край","Березниковский городской округ","57708000","Березниковский городской округ","57708000","26772092","ОАО \"ОХК \"УРАЛХИМ\" филиал \"Азот\"","7703647595","591143001","Оказание услуг в сфере водоснабжения, водоотведения и очистки сточных вод","VO"]
[66,"Пермский край","Пермский городской округ","57701000","Пермский городской округ","57701000","26508441","ОАО \"Пермский завод \"Машиностроитель\"","5906075029","590150001","Оказание услуг в сфере водоснабжения, водоотведения и очистки сточных вод","VO"]
[67,"Пермский край","Пермский городской округ","57701000","Пермский городской округ","57701000","26513185","ОАО \"Пермский завод силикатных панелей\"","5903004541","594801001","Оказание услуг по перекачке","VO"]
[68,"Пермский край","Краснокамский муниципальный район","57627000","Майское","57627405","26513562","ОАО \"Пермский свинокомплекс\"","5916022234","591601001","Оказание услуг в сфере водоснабжения, водоотведения и очистки сточных вод","VO"]
[69,"Пермский край","Краснокамский муниципальный район","57627000","Оверятское","57627154","26513570","ОАО \"Пермтрансжелезобетон\"","5916000030","591601001","Оказание услуг в сфере водоснабжения, водоотведения и очистки сточных вод","VO"]
[70,"Пермский край","Пермский муниципальный район","57646000","Платошинское","57646443","26512512","ОАО \"Платошинская птицефабрика\"","5948002047","594801001","Оказание услуг в сфере водоснабжения, водоотведения и очистки сточных вод","VO"]
[71,"Пермский край","Пермский городской округ","57701000","Пермский городской округ","57701000","26506225","ОАО \"Протон-ПМ\"","5904006044","590150001","Оказание услуг в сфере водоснабжения, водоотведения и очистки сточных вод","VO"]
[72,"Пермский край","Пермский муниципальный район","57646000","Бершетское","57646402","26512483","ОАО \"Птицефабрика \"Калининская\"","5948000829","594801001","Оказание услуг в сфере водоотведения и очистки сточных вод","VO"]
[73,"Пермский край","Пермский муниципальный район","57646000","Сылвенское","57646156","27588223","ОАО \"Птицефабрика \"Пермская\"","5948008585","594801001","Оказание услуг в сфере водоснабжения, водоотведения и очистки сточных вод","VO"]
[74,"Пермский край","Кунгурский муниципальный район","57630000","Комсомольское","57630429","26511603","ОАО \"Птицефабрика Комсомольская\"","5917591459","591701001","Оказание услуг в сфере водоснабжения, водоотведения и очистки сточных вод","VO"]
[75,"Пермский край","","","","","26824698","ОАО \"Славянка\"","7702707386","434543001","Оказание услуг в сфере водоснабжения, водоотведения и очистки сточных вод","VO"]
[76,"Пермский край","Березниковский городской округ","57708000","Березниковский городской округ","57708000","26506248","ОАО \"Уралкалий\"","5911029807","997350001","Оказание услуг в сфере очистки сточных вод","VO"]
[77,"Пермский край","Усольский муниципальный район","57653000","Усольское","57653101","27989337","ОАО \"Усольский родник\"","5911064777","591101001","Оказание услуг в сфере водоотведения и очистки сточных вод","VO"]
[78,"Пермский край","Александровский муниципальный район","57605000","Яйвинское","57605158","26790798","ОАО \"Э.ОН Россия\"","8602067092","591131001","Оказание услуг в сфере водоснабжения, водоотведения и очистки сточных вод","VO"]
[79,"Пермский край","Пермский городской округ","57701000","Пермский городской округ","57701000","26508508","ОАО \"Энергетик - ПМ\"","5904007390","590401001","Оказание услуг по перекачке","VO"]
[80,"Пермский край","Губахинский городской округ","57617000","Губахинский городской округ","57617000","26505528","ОАО\" Метафракс\"","5913001268","590150001","Оказание услуг в сфере водоснабжения, водоотведения и очистки сточных вод","VO"]
[81,"Пермский край","Оханский муниципальный район","57642000","Оханское","57642101","28465082","ОМУП \"ЖКХ \"Гарант\"","5947000230","594701001","Оказание услуг в сфере водоснабжения, водоотведения и очистки сточных вод","VO"]
[82,"Пермский край","Гремячинский муниципальный район","57615000","Юбилейнинское","57615458","28056476","ООО  \"Тепло-Сервис\"","5921028270","592101001","Оказание услуг в сфере водоотведения и очистки сточных вод","VO"]
[83,"Пермский край","Пермский муниципальный район","57646000","Гамовское","57646437","26512485","ООО \"Аква-Сервис\"","5948026312","594801001","Оказание услуг в сфере водоснабжения, водоотведения и очистки сточных вод","VO"]
[84,"Пермский край","Чайковский муниципальный район","57654000","Альняшинское","57654402","26508810","ООО \"Альком\"","5920029899","592001001","Оказание услуг в сфере водоснабжения, водоотведения и очистки сточных вод","VO"]
[85,"Пермский край","Юсьвинский муниципальный район","57827000","Пожвинское","57827421","27224898","ООО \"ВИСТ\"","5981005655","598101001","Оказание услуг в сфере водоотведения и очистки сточных вод","VO"]
[86,"Пермский край","Кизеловский муниципальный район","57623000","Южно-Коспашское","57623462","28128695","ООО \"Вектор\"","5911062339","591101001","Оказание услуг в сфере водоснабжения, водоотведения и очистки сточных вод","VO"]
[87,"Пермский край","Нытвенский муниципальный район","57634000","Чайковское","57634410","27910040","ООО \"Вертикаль\"","5916026711","591601001","Оказание услуг в сфере водоснабжения, водоотведения и очистки сточных вод","VO"]
[88,"Пермский край","Пермский муниципальный район","57646000","Лобановское","57646419","26512501","ООО \"ВиКа\"","5948026295","594801001","Оказание услуг в сфере водоснабжения, водоотведения и очистки сточных вод","VO"]
[89,"Пермский край","Кизеловский муниципальный район","57623000","Центрально-Коспашское","57623458","28128885","ООО \"Водник\"","5911067087","591101001","Оказание услуг в сфере водоснабжения, водоотведения и очистки сточных вод","VO"]
[90,"Пермский край","Карагайский муниципальный район","57622000","Карагайское","57622410","26511574","ООО \"Водоканал\"","5933004588","593301001","Оказание услуг в сфере водоснабжения, водоотведения и очистки сточных вод","VO"]
[91,"Пермский край","Карагайский муниципальный район","57622000","Менделеевское","57622416","26511577","ООО \"Водолей\"","5933006105","593301001","Оказание услуг в сфере водоснабжения, водоотведения и очистки сточных вод","VO"]
[92,"Пермский край","Нытвенский муниципальный район","57634000","Нытвенское","57634101","26512345","ООО \"ГК Нытва-энерго\"","5916021640","591601001","Оказание услуг в сфере водоснабжения, водоотведения и очистки сточных вод","VO"]
[93,"Пермский край","Пермский муниципальный район","57646000","Усть-Качкинское","57646458","26512520","ООО \"Гак-Сервис\"","5948023738","594801001","Оказание услуг в сфере водоснабжения, водоотведения и очистки сточных вод","VO"]
[94,"Пермский край","Пермский муниципальный район","57646000","Заболотское","57646407","26512493","ООО \"Гидромастер\"","5948026337","594801001","Оказание услуг в сфере водоснабжения, водоотведения и очистки сточных вод","VO"]
[95,"Пермский край","Горнозаводский муниципальный район","57614000","Горнозаводское","57614101","26511533","ООО \"Горнозаводск-МикроТЭК\"","5921021483","592101001","Оказание услуг в сфере водоснабжения, водоотведения и очистки сточных вод","VO"]
[96,"Пермский край","Пермский городской округ","57701000","Пермский городской округ","57701000","28465501","ООО \"Дворянский двор\"","5902827944","590201001","Оказание услуг по перекачке","VO"]
[97,"Пермский край","Кунгурский муниципальный район","57630000","Зарубинское","57630416","26513717","ООО \"ЖКХ\"","5917591900","591701001","Оказание услуг в сфере водоснабжения, водоотведения и очистки сточных вод","VO"]
[98,"Пермский край","Пермский муниципальный район","57646000","Юго-Камское","57646160","26512522","ООО \"ЖКХ-Инвест\"","5904117121","594801001","Оказание услуг в сфере водоснабжения, водоотведения и очистки сточных вод","VO"]
[99,"Пермский край","Кунгурский муниципальный район","57630000","Шадейское","57630465","27439715","ООО \"ЖЭК\"","5917598704","591701001","Оказание услуг в сфере водоотведения и очистки сточных вод","VO"]
[100,"Пермский край","Кизеловский муниципальный район","57623000","Центрально-Коспашское","57623458","28448906","ООО \"Жилищная Эксплуатационная Компания\"","5911067658","591101001","Оказание услуг в сфере водоснабжения, водоотведения и очистки сточных вод","VO"]
[101,"Пермский край","Кизеловский муниципальный район","57623000","Кизеловское","57623101","27976380","ООО \"Жилкомхоз\"","5911067827","591101001","Оказание услуг в сфере водоотведения и очистки сточных вод","VO"]
[102,"Пермский край","Верещагинский муниципальный район","57612000","Вознесенское","57612407","26511514","ООО \"Завод калориферов \"ФЕНИКС\"","5902142193","593301001","Оказание услуг в сфере водоотведения и очистки сточных вод","VO"]
[103,"Пермский край","Чайковский муниципальный район","57654000","Зипуновское","57654413","26508823","ООО \"Зипуновская коммунальная компания\"","5920025478","592001001","Оказание услуг в сфере водоснабжения, водоотведения и очистки сточных вод","VO"]
[104,"Пермский край","Александровский муниципальный район","57605000","Всеволодо-Вильвенское","57605154","26513273","ООО \"Инженер-сервис\"","5904203878","591101001","Оказание услуг в сфере водоснабжения, водоотведения и очистки сточных вод","VO"]
[105,"Пермский край","Краснокамский муниципальный район","57627000","Краснокамское","57627101","27362587","ООО \"Камабумпром. Очистка\"","5916023220","591601001","Оказание услуг в сфере водоснабжения, водоотведения и очистки сточных вод","VO"]
[106,"Пермский край","Очерский муниципальный район","57644000","Очерское","57644101","26512458","ООО \"Комплекс \"А\"","5947013744","594701001","Оказание услуг в сфере водоотведения и очистки сточных вод","VO"]
[107,"Пермский край","","","","","26413215","ООО \"ЛУКОЙЛ-ЭНЕРГОСЕТИ\"","5260230051","525350001","Оказание услуг в сфере водоснабжения, водоотведения и очистки сточных вод","VO"]
[108,"Пермский край","Кунгурский муниципальный район","57630000","Ленское","57630434","27439958","ООО \"Ленск-Энерго\"","5917600181","591701001","Оказание услуг в сфере водоотведения и очистки сточных вод","VO"]
[109,"Пермский край","Лысьвенский городской округ","57632000","Лысьвенский городской округ","57632000","27554958","ООО \"Лысьва-ТеплоСервис\"","5918841920","590401001","Оказание услуг в сфере водоснабжения, водоотведения и очистки сточных вод","VO"]
[110,"Пермский край","Лысьвенский городской округ","57632000","Лысьвенский городской округ","57632000","26318609","ООО \"Лысьва-теплоэнерго\"","6323097287","591801001","Оказание услуг в сфере водоснабжения, водоотведения и очистки сточных вод","VO"]
[111,"Пермский край","Краснокамский муниципальный район","57627000","Майское","57627405","26562563","ООО \"Майские тепловые сети\"","5916021093","591601001","Оказание услуг в сфере водоснабжения, водоотведения и очистки сточных вод","VO"]
[112,"Пермский край","Кунгурский муниципальный район","57630000","Плехановское","57630446","26956387","ООО \"Мой Дом\"","5917598285","591701001","Оказание услуг в сфере водоснабжения, водоотведения и очистки сточных вод","VO"]
[113,"Пермский край","Пермский городской округ","57701000","Пермский городской округ","57701000","26506176","ООО \"НОВОГОР-Прикамье\"","5902817382","590501001","Оказание услуг в сфере водоснабжения, водоотведения и очистки сточных вод","VO"]
[114,"Пермский край","Березниковский городской округ","57708000","Березниковский городской округ","57708000","26817020","ООО \"Новогор-Прикамье\" Березниковский филиал","5902817382","591102001","Оказание услуг в сфере водоснабжения, водоотведения и очистки сточных вод","VO"]
[115,"Пермский край","Гремячинский муниципальный район","57615000","Шумихинское","57615456","28424843","ООО \"Нырок\"","5921029524","592101001","Оказание услуг в сфере водоотведения и очистки сточных вод","VO"]
[116,"Пермский край","Октябрьский муниципальный район","57636000","Октябрьское","57636151","26512386","ООО \"Октябрьский водоканал\"","5951043075","595101001","Оказание услуг в сфере водоснабжения, водоотведения и очистки сточных вод","VO"]
[117,"Пермский край","Оханский муниципальный район","57642000","Оханское","57642101","26512437","ООО \"Оханский водоканал\"","5947017227","594701001","Оказание услуг в сфере водоотведения и очистки сточных вод","VO"]
[118,"Пермский край","Очерский муниципальный район","57644000","Очерское","57644101","26512454","ООО \"Очерская управляющая компания\"","5947016230","594701001","Оказание услуг по перекачке","VO"]
[119,"Пермский край","Пермский городской округ","57701000","Пермский городской округ","57701000","26513193","ООО \"Пермская сетевая компания\"","5904176536","590401001","Оказание услуг по перекачке","VO"]
[120,"Пермский край","Юсьвинский муниципальный район","57827000","Пожвинское","57827421","26771947","ООО \"Пожважилсервис\"","5981000449","598101001","Оказание услуг в сфере водоотведения и очистки сточных вод","VO"]
[121,"Пермский край","Березниковский городской округ","57708000","Березниковский городской округ","57708000","27712211","ООО \"Промстоки\"","5911064287","591101001","","VO"]
[122,"Пермский край","Карагайский муниципальный район","57622000","Менделеевское","57622416","27677400","ООО \"Птицефабрика \"Менделеевская\"","5933008039","593301001","Оказание услуг в сфере водоотведения и очистки сточных вод","VO"]
[123,"Пермский край","Очерский муниципальный район","57644000","Очерское","57644101","27265749","ООО \"РОСТВЕРК-Пермский край\"","5902220557","590201001","Оказание услуг в сфере очистки сточных вод","VO"]
[124,"Пермский край","Пермский муниципальный район","57646000","Бершетское","57646402","26512474","ООО \"РЭМ-Сервис\"","5948029120","594801001","Оказание услуг в сфере водоснабжения, водоотведения и очистки сточных вод","VO"]
[125,"Пермский край","Кудымкарский муниципальный район","57821000","Белоевское","57821404","28005632","ООО \"Радуга\"","5981004595","598101001","Оказание услуг в сфере водоснабжения, водоотведения и очистки сточных вод","VO"]
[126,"Пермский край","Чайковский муниципальный район","57654000","Марковское","57654414","27598991","ООО \"Регион-Строй\"","5920025372","592001001","Оказание услуг в сфере водоснабжения, водоотведения и очистки сточных вод","VO"]
[127,"Пермский край","Соликамский муниципальный район","57650000","Родниковское","57650443","26512526","ООО \"Север плюс\"","5919005170","591901001","Оказание услуг в сфере водоснабжения, водоотведения и очистки сточных вод","VO"]
[128,"Пермский край","Чусовской муниципальный район","57658000","Скальнинское","57658462","26508858","ООО \"Скальнинское ЖКХ-Сервис\"","5921024540","592101001","Оказание услуг в сфере водоснабжения, водоотведения и очистки сточных вод","VO"]
[129,"Пермский край","Березовский муниципальный район","57606000","Березовское","57606404","26511397","ООО \"Союз Профпласт\"","5917596295","591701001","Оказание услуг в сфере водоснабжения, водоотведения и очистки сточных вод","VO"]
[130,"Пермский край","Пермский муниципальный район","57646000","Платошинское","57646443","26512514","ООО \"Стройтехсервис\"","5904083779","590401001","Оказание услуг в сфере водоснабжения, водоотведения и очистки сточных вод","VO"]
[131,"Пермский край","Пермский городской округ","57701000","Пермский городской округ","57701000","27479571","ООО \"Строн-М\"","5902811951","590201001","Оказание услуг в сфере водоснабжения, водоотведения и очистки сточных вод","VO"]
[132,"Пермский край","Пермский городской округ","57701000","Пермский городской округ","57701000","27598618","ООО \"ТЭВК-сети\"","5904209904","590401001","Оказание услуг по перекачке","VO"]
[133,"Пермский край","Пермский городской округ","57701000","Пермский городской округ","57701000","26506231","ООО \"Тепло-М\"","5906042295","590601001","Оказание услуг по перекачке","VO"]
[134,"Пермский край","Нытвенский муниципальный район","57634000","Чайковское","57634410","26511546","ООО \"Тепломонтаж\"","5942004841","594201001","Оказание услуг в сфере водоснабжения, водоотведения и очистки сточных вод","VO"]
[135,"Пермский край","Соликамский муниципальный район","57650000","Родниковское","57650443","27712146","ООО \"УК \"Управ-дом\"","5919012315","591901001","Оказание услуг в сфере водоснабжения, водоотведения и очистки сточных вод","VO"]
[136,"Пермский край","Александровский муниципальный район","57605000","Яйвинское","57605158","26790750","ООО \"Управление \"ЖилСервис\"","5911062770","591101001","Оказание услуг в сфере водоснабжения, водоотведения и очистки сточных вод","VO"]
[137,"Пермский край","Краснокамский муниципальный район","57627000","Стряпунинское","57627408","26771950","ООО \"Управляющая компания \"Северный\"","5916022266","591601001","Оказание услуг в сфере водоотведения и очистки сточных вод","VO"]
[138,"Пермский край","Кунгурский муниципальный район","57630000","Ергачинское","57630410","26511599","ООО \"Урал-Сфера\"","5917510548","591701001","Оказание услуг в сфере водоснабжения, водоотведения и очистки сточных вод","VO"]
[139,"Пермский край","Кунгурский муниципальный район","57630000","Плехановское","57630446","28462436","ООО \"Уралгидрострой\"","5917599377","591701001","Оказание услуг в сфере водоснабжения, водоотведения и очистки сточных вод","VO"]
[140,"Пермский край","Нытвенский муниципальный район","57634000","Уральское","57634157","26799749","ООО \"Уральский КомСервис\"","5916018894","591601001","Оказание услуг в сфере водоотведения и очистки сточных вод","VO"]
[141,"Пермский край","Нытвенский муниципальный район","57634000","Григорьевское","57634404","26513797","ООО \"Фаворит\"","5916021583","591601001","Оказание услуг в сфере водоснабжения, водоотведения и очистки сточных вод","VO"]
[142,"Пермский край","Чайковский муниципальный район","57654000","Ольховское","57654416","26508827","ООО \"ЭкоСтрой\"","5920030894","592001001","Оказание услуг в сфере водоснабжения, водоотведения и очистки сточных вод","VO"]
[143,"Пермский край","Пермский муниципальный район","57646000","Двуреченское","57646405","26512487","ООО \"Юг-Сервис\"","5948026320","594801001","Оказание услуг в сфере водоснабжения, водоотведения и очистки сточных вод","VO"]
[144,"Пермский край","Очерский муниципальный район","57644000","Павловское","57644154","27248148","ООО «Аквамарин»","5947018661","594701001","Оказание услуг в сфере водоснабжения, водоотведения и очистки сточных вод","VO"]
[145,"Пермский край","Пермский городской округ","57701000","Пермский городской округ","57701000","28467496","ООО «ЛУКОЙЛ-ПЕРМЬ»","5902201970","590201001","Оказание услуг в сфере водоснабжения, водоотведения и очистки сточных вод","VO"]
[146,"Пермский край","Соликамский муниципальный район","57650000","Тюлькинское","57650432","28221899","ООО «ПермИнвестСтрой»","5904235446","590401001","Оказание услуг в сфере водоотведения и очистки сточных вод","VO"]
[147,"Пермский край","Чайковский муниципальный район","57654000","Ваньковское","57654406","26508817","ООО Ваньковский коммунальный участок","5920030020","592001001","Оказание услуг в сфере очистки сточных вод","VO"]
[148,"Пермский край","Соликамский городской округ","57730000","Соликамский городской округ","57730000","26508531","ООО Водоканал","5919004850","591901001","Оказание услуг в сфере водоснабжения, водоотведения и очистки сточных вод","VO"]
[149,"Пермский край","Александровский муниципальный район","57605000","Александровское","57605105","26508536","ООО Гарант-М","5911053535","591101001","Оказание услуг в сфере водоснабжения, водоотведения и очистки сточных вод","VO"]
[150,"Пермский край","Березовский муниципальный район","57606000","Березовское","57606404","26511399","ООО УК \"Теплосервис\"","5918837031","591801001","Оказание услуг в сфере водоснабжения, водоотведения и очистки сточных вод","VO"]
[151,"Пермский край","Чайковский муниципальный район","57654000","Фокинское","57654428","26508856","ООО УК Новый Дом","5920028310","592001001","Оказание услуг в сфере водоснабжения, водоотведения и очистки сточных вод","VO"]
[152,"Пермский край","Чайковский муниципальный район","57654000","Уральское","57654425","26508841","ООО Уральская коммунальная компания","5920025083","592001001","Оказание услуг в сфере водоснабжения, водоотведения и очистки сточных вод","VO"]
[153,"Пермский край","Лысьвенский городской округ","57632000","Лысьвенский городской округ","57632000","26506131","ООО Электротяжмаш-Привод","5918838116","590150001","Оказание услуг в сфере водоснабжения, водоотведения и очистки сточных вод","VO"]
[154,"Пермский край","Пермский городской округ","57701000","Пермский городской округ","57701000","26508468","ООО\"ЛУКОЙЛ-Пермнефтеоргсинтез\"","5905099475","997150001","Оказание услуг в сфере водоснабжения, водоотведения и очистки сточных вод","VO"]
[155,"Пермский край","Добрянский муниципальный район","57616000","Добрянское","57616101","26506305","ООО\"Уралводоканал\"","5914018000","591401001","Оказание услуг в сфере водоснабжения, водоотведения и очистки сточных вод","VO"]
[156,"Пермский край","Пермский муниципальный район","57646000","Кондратовское","57646409","26512497","Общество с ограниченной ответственностью \"ВКХ\"","5948026305","594801001","Оказание услуг в сфере водоснабжения, водоотведения и очистки сточных вод","VO"]
[157,"Пермский край","Пермский муниципальный район","57646000","Сылвенское","57646156","26512516","Общество с ограниченной ответственностью \"Водопроводный-канализационный сервис\"","5948026425","594801001","Оказание услуг в сфере водоснабжения, водоотведения и очистки сточных вод","VO"]
[158,"Пермский край","Кизеловский муниципальный район","57623000","Кизеловское","57623101","28448854","Общество с ограниченной ответственностью \"Кизеловский водоканал\"","5911068210","591101001","Оказание услуг в сфере водоснабжения, водоотведения и очистки сточных вод","VO"]
[159,"Пермский край","","","","","26813272","Открытое акционерное общество \"Российские железные дороги\" Свердловская дирекция по тепловодоснабжению - структурное подразделение Центральной дирекции по тепловодоснабжению - филиала ОАО \"РЖД\", г.Екатеринбург","7708503727","665945027","Оказание услуг в сфере водоотведения и очистки сточных вод","VO"]
[160,"Пермский край","Пермский городской округ","57701000","Пермский городской округ","57701000","28079923","ПРУ ООО «ЛУКОЙЛ-ЭНЕРГОСЕТИ»","5260230051","596001001","Оказание услуг в сфере водоотведения и очистки сточных вод","VO"]
[161,"Пермский край","Горнозаводский муниципальный район","57614000","Пашийское","57614404","26511539","Пашийское МУП \"Жилсервис\"","5921021557","592101001","Оказание услуг в сфере водоснабжения, водоотведения и очистки сточных вод","VO"]
[162,"Пермский край","Пермский муниципальный район","57646000","Пальниковское","57646440","26512507","СХПК \"Пальник\"","5948022847","594801001","Оказание услуг в сфере водоснабжения, водоотведения и очистки сточных вод","VO"]
[163,"Пермский край","Чернушинский муниципальный район","57657000","Чернушинское","57657101","26512542","УМП \"Водопроводно-канализационное хозяйство\"","5957005598","595701001","Оказание услуг в сфере водоснабжения, водоотведения и очистки сточных вод","VO"]
[164,"Пермский край","Нытвенский муниципальный район","57634000","Уральское","57634157","27581498","УМП \"ЖКХ\"","5942001689","594201001","Оказание услуг в сфере водоотведения и очистки сточных вод","VO"]
[165,"Пермский край","Усольский муниципальный район","57653000","Усольское","57653101","26512536","Усольские тепловые сети Представительство ООО \"Тазмерское\"","5952004784","591105001","Оказание услуг в сфере водоснабжения, водоотведения и очистки сточных вод","VO"]
[166,"Пермский край","Пермский городской округ","57701000","Пермский городской округ","57701000","26506221","ФКП \"Пермский пороховой завод\"","5908006119","590150001","Оказание услуг в сфере водоснабжения, водоотведения и очистки сточных вод","VO"]
[167,"Пермский край","Пермский муниципальный район","57646000","Гамовское","57646437","26512481","ФКУ \"Пермская ВК ГУФСИН России по Пермскому краю \"","5948001607","594801001","Оказание услуг в сфере водоснабжения, водоотведения и очистки сточных вод","VO"]
[168,"Пермский край","Чусовской муниципальный район","57658000","Скальнинское","57658462","26508878","ФКУ ИК-35 ГУФСИН России","5921015867","592101001","Оказание услуг в сфере водоснабжения, водоотведения и очистки сточных вод","VO"]

{"sheet":"modClassifierValidate","index":19,"n_rows":0,"n_cols":0,"rows_kept":0,"cut":false,"hidden":true,"merged":[]}

{"sheet":"modHyp","index":20,"n_rows":0,"n_cols":0,"rows_kept":0,"cut":false,"hidden":true,"merged":[]}

{"sheet":"modList00","index":21,"n_rows":0,"n_cols":0,"rows_kept":0,"cut":false,"hidden":true,"merged":[]}

{"sheet":"modList01","index":22,"n_rows":0,"n_cols":0,"rows_kept":0,"cut":false,"hidden":true,"merged":[]}

{"sheet":"modList02","index":23,"n_rows":0,"n_cols":0,"rows_kept":0,"cut":false,"hidden":true,"merged":[]}

{"sheet":"modList03","index":24,"n_rows":0,"n_cols":0,"rows_kept":0,"cut":false,"hidden":true,"merged":[]}

{"sheet":"modfrmDateChoose","index":25,"n_rows":0,"n_cols":0,"rows_kept":0,"cut":false,"hidden":true,"merged":[]}

{"sheet":"modComm","index":26,"n_rows":0,"n_cols":0,"rows_kept":0,"cut":false,"hidden":true,"merged":[]}

{"sheet":"modThisWorkbook","index":27,"n_rows":0,"n_cols":0,"rows_kept":0,"cut":false,"hidden":true,"merged":[]}

{"sheet":"REESTR_MO","index":28,"n_rows":341,"n_cols":4,"rows_kept":341,"cut":false,"hidden":true,"merged":[]}
["№","МР","МО","МО_ОКТМО"]
[1,"Александровский муниципальный район","Александровский муниципальный район","57605000"]
[2,"Александровский муниципальный район","Александровское","57605105"]
[3,"Александровский муниципальный район","Всеволодо-Вильвенское","57605154"]
[4,"Александровский муниципальный район","Скопкортненское","57605401"]
[5,"Александровский муниципальный район","Яйвинское","57605158"]
[6,"Бардымский муниципальный район","Бардымский муниципальный район","57604000"]
[7,"Бардымский муниципальный район","Бардымское","57604407"]
[8,"Бардымский муниципальный район","Березниковское","57604410"]
[9,"Бардымский муниципальный район","Бичуринское","57604413"]
[10,"Бардымский муниципальный район","Брюзлинское","57604416"]
[11,"Бардымский муниципальный район","Елпачихинское","57604419"]
[12,"Бардымский муниципальный район","Красноярское","57604425"]
[13,"Бардымский муниципальный район","Новоашапское","57604431"]
[14,"Бардымский муниципальный район","Печменское","57604437"]
[15,"Бардымский муниципальный район","Сарашевское","57604440"]
[16,"Бардымский муниципальный район","Тюндюковское","57604403"]
[17,"Бардымский муниципальный район","Федорковское","57604441"]
[18,"Бардымский муниципальный район","Шермейское","57604449"]
[19,"Березниковский городской округ","Березниковский городской округ","57708000"]
[20,"Березовский муниципальный район","Асовское","57606402"]
[21,"Березовский муниципальный район","Березовский муниципальный район","57606000"]
[22,"Березовский муниципальный район","Березовское","57606404"]
[23,"Березовский муниципальный район","Дубовское","57606410"]
[24,"Березовский муниципальный район","Заборьинское","57606413"]
[25,"Березовский муниципальный район","Кляповское","57606425"]
[26,"Березовский муниципальный район","Переборское","57606431"]
[27,"Березовский муниципальный район","Сосновское","57606432"]
[28,"Большесосновский муниципальный район","Большесосновский муниципальный район","57608000"]
[29,"Большесосновский муниципальный район","Большесосновское","57608408"]
[30,"Большесосновский муниципальный район","Кленовское","57608410"]
[31,"Большесосновский муниципальный район","Левинское","57608413"]
[32,"Большесосновский муниципальный район","Петропавловское","57608428"]
[33,"Большесосновский муниципальный район","Полозовское","57608431"]
[34,"Большесосновский муниципальный район","Тойкинское","57608437"]
[35,"Большесосновский муниципальный район","Черновское","57608440"]
[36,"Верещагинский муниципальный район","Бородульское","57612404"]
[37,"Верещагинский муниципальный район","Верещагинский муниципальный район","57612000"]
[38,"Верещагинский муниципальный район","Верещагинское","57612101"]
[39,"Верещагинский муниципальный район","Вознесенское","57612407"]
[40,"Верещагинский муниципальный район","Зюкайское","57612409"]
[41,"Верещагинский муниципальный район","Нижнегалинское","57612411"]
[42,"Верещагинский муниципальный район","Путинское","57612425"]
[43,"Верещагинский муниципальный район","Сепычевское","57612428"]
[44,"Гайнский муниципальный район","Верхнестарицкое","57814403"]
[45,"Гайнский муниципальный район","Гайнский муниципальный район","57814000"]
[46,"Гайнский муниципальный район","Гайнское","57814405"]
[47,"Гайнский муниципальный район","Иванчинское","57814409"]
[48,"Гайнский муниципальный район","Кебратское","57814412"]
[49,"Гайнский муниципальный район","Сейвинское","57814421"]
[50,"Гайнский муниципальный район","Серебрянское","57814424"]
[51,"Гайнский муниципальный район","Усть-Черновское","57814429"]
[52,"Горнозаводский муниципальный район","Бисерское","57614401"]
[53,"Горнозаводский муниципальный район","Горнозаводский муниципальный район","57614000"]
[54,"Горнозаводский муниципальный район","Горнозаводское","57614101"]
[55,"Горнозаводский муниципальный район","Кусье-Александровское","57614402"]
[56,"Горнозаводский муниципальный район","Медведкинское","57614403"]
[57,"Горнозаводский муниципальный район","Пашийское","57614404"]
[58,"Горнозаводский муниципальный район","Сарановское","57614405"]
[59,"Горнозаводский муниципальный район","Теплогорское","57614406"]
[60,"Гремячинский муниципальный район","Гремячинский муниципальный район","57615000"]
[61,"Гремячинский муниципальный район","Гремячинское","57615101"]
[62,"Гремячинский муниципальный район","Усьвенское","57615454"]
[63,"Гремячинский муниципальный район","Шумихинское","57615456"]
[64,"Гремячинский муниципальный район","Юбилейнинское","57615458"]
[65,"Губахинский городской округ","Губахинский городской округ","57617000"]
[66,"Добрянский муниципальный район","Вильвенское","57616403"]
[67,"Добрянский муниципальный район","Висимское","57616404"]
[68,"Добрянский муниципальный район","Дивьинское","57616406"]
[69,"Добрянский муниципальный район","Добрянский муниципальный район","57616000"]
[70,"Добрянский муниципальный район","Добрянское","57616101"]
[71,"Добрянский муниципальный район","Краснослудское","57616411"]
[72,"Добрянский муниципальный район","Перемское","57616425"]
[73,"Добрянский муниципальный район","Полазненское","57616157"]
[74,"Добрянский муниципальный район","Сенькинское","57616428"]
[75,"Еловский муниципальный район","Брюховское","57618402"]
[76,"Еловский муниципальный район","Дубровское","57618404"]
[77,"Еловский муниципальный район","Еловский муниципальный район","57618000"]
[78,"Еловский муниципальный район","Еловское","57618407"]
[79,"Еловский муниципальный район","Малоусинское","57618419"]
[80,"Еловский муниципальный район","Сугановское","57618416"]
[81,"Ильинский муниципальный район","Васильевское","57620402"]
[82,"Ильинский муниципальный район","Ивановское","57620404"]
[83,"Ильинский муниципальный район","Ильинский муниципальный район","57620000"]
[84,"Ильинский муниципальный район","Ильинское","57620151"]
[85,"Ильинский муниципальный район","Посерское","57620422"]
[86,"Ильинский муниципальный район","Сретенское","57620434"]
[87,"Ильинский муниципальный район","Филатовское","57620440"]
[88,"Ильинский муниципальный район","Чермозское","57620104"]
[89,"Карагайский муниципальный район","Карагайский муниципальный район","57622000"]
[90,"Карагайский муниципальный район","Карагайское","57622410"]
[91,"Карагайский муниципальный район","Козьмодемьянское","57622413"]
[92,"Карагайский муниципальный район","Менделеевское","57622416"]
[93,"Карагайский муниципальный район","Нердвинское","57622419"]
[94,"Карагайский муниципальный район","Никольское","57622422"]
[95,"Карагайский муниципальный район","Обвинское","57622425"]
[96,"Карагайский муниципальный район","Рождественское","57622434"]
[97,"Кизеловский муниципальный район","Кизеловский муниципальный район","57623000"]
[98,"Кизеловский муниципальный район","Кизеловское","57623101"]
[99,"Кизеловский муниципальный район","Северно-Коспашское","57623456"]
[100,"Кизеловский муниципальный район","Центрально-Коспашское","57623458"]
[101,"Кизеловский муниципальный район","Шахтинское","57623460"]
[102,"Кизеловский муниципальный район","Южно-Коспашское","57623462"]
[103,"Кишертский муниципальный район","Андреевское","57624402"]
[104,"Кишертский муниципальный район","Кишертский муниципальный район","57624000"]
[105,"Кишертский муниципальный район","Кордонское","57624405"]
[106,"Кишертский муниципальный район","Осинцевское","57624413"]
[107,"Кишертский муниципальный район","Посадское","57624419"]
[108,"Кишертский муниципальный район","Усть-Кишертское","57624428"]
[109,"Косинский муниципальный район","Косинский муниципальный район","57817000"]
[110,"Косинский муниципальный район","Косинское","57817404"]
[111,"Косинский муниципальный район","Левичанское","57817406"]
[112,"Косинский муниципальный район","Светличанское","57817425"]
[113,"Косинский муниципальный район","Чазевское","57817430"]
[114,"Кочевский муниципальный район","Большекочинское","57819404"]
[115,"Кочевский муниципальный район","Кочевский муниципальный район","57819000"]
[116,"Кочевский муниципальный район","Кочевское","57819408"]
[117,"Кочевский муниципальный район","Маратовское","57819410"]
[118,"Кочевский муниципальный район","Пелымское","57819412"]
[119,"Кочевский муниципальный район","Юксеевское","57819420"]
[120,"Красновишерский муниципальный район","Вайское","57626407"]
[121,"Красновишерский муниципальный район","Верх-Язьвинское","57626413"]
[122,"Красновишерский муниципальный район","Вишерогорское","57626416"]
[123,"Красновишерский муниципальный район","Красновишерский муниципальный район","57626000"]
[124,"Красновишерский муниципальный район","Красновишерское","57626101"]
[125,"Красновишерский муниципальный район","Усть-Язьвинское","57626440"]
[126,"Краснокамский муниципальный район","Краснокамский муниципальный район","57627000"]
[127,"Краснокамский муниципальный район","Краснокамское","57627101"]
[128,"Краснокамский муниципальный район","Майское","57627405"]
[129,"Краснокамский муниципальный район","Оверятское","57627154"]
[130,"Краснокамский муниципальный район","Стряпунинское","57627408"]
[131,"Кудымкарский городской округ","Кудымкарский городской округ","57851000"]
[132,"Кудымкарский муниципальный район","Белоевское","57821404"]
[133,"Кудымкарский муниципальный район","Верх-Иньвенское","57821408"]
[134,"Кудымкарский муниципальный район","Егвинское","57821414"]
[135,"Кудымкарский муниципальный район","Кудымкарский муниципальный район","57821000"]
[136,"Кудымкарский муниципальный район","Ленинское","57821428"]
[137,"Кудымкарский муниципальный район","Ошибское","57821436"]
[138,"Кудымкарский муниципальный район","Степановское","57821444"]
[139,"Куединский муниципальный район","Бикбардинское","57628407"]
[140,"Куединский муниципальный район","Большегондырское","57628410"]
[141,"Куединский муниципальный район","Большекустовское","57628413"]
[142,"Куединский муниципальный район","Большеусинское","57628416"]
[143,"Куединский муниципальный район","Куединский муниципальный район","57628000"]
[144,"Куединский муниципальный район","Куединское","57628426"]
[145,"Куединский муниципальный район","Нижнесавинское","57628428"]
[146,"Куединский муниципальный район","Ошьинское","57628431"]
[147,"Куединский муниципальный район","Талмазское","57628440"]
[148,"Куединский муниципальный район","Федоровское","57628446"]
[149,"Куединский муниципальный район","Шагиртское","57628449"]
[150,"Кунгурский городской округ","Кунгурский городской округ","57722000"]
[151,"Кунгурский муниципальный район","Бырминское","57630404"]
[152,"Кунгурский муниципальный район","Голдыревское","57630407"]
[153,"Кунгурский муниципальный район","Ергачинское","57630410"]
[154,"Кунгурский муниципальный район","Зарубинское","57630416"]
[155,"Кунгурский муниципальный район","Калининское","57630428"]
[156,"Кунгурский муниципальный район","Комсомольское","57630429"]
[157,"Кунгурский муниципальный район","Кунгурский муниципальный район","57630000"]
[158,"Кунгурский муниципальный район","Кыласовское","57630431"]
[159,"Кунгурский муниципальный район","Ленское","57630434"]
[160,"Кунгурский муниципальный район","Мазунинское","57630437"]
[161,"Кунгурский муниципальный район","Моховское","57630438"]
[162,"Кунгурский муниципальный район","Насадское","57630440"]
[163,"Кунгурский муниципальный район","Неволинское","57630443"]
[164,"Кунгурский муниципальный район","Плехановское","57630446"]
[165,"Кунгурский муниципальный район","Сергинское","57630449"]
[166,"Кунгурский муниципальный район","Тихановское","57630445"]
[167,"Кунгурский муниципальный район","Троельжанское","57630458"]
[168,"Кунгурский муниципальный район","Усть-Туркское","57630461"]
[169,"Кунгурский муниципальный район","Филипповское","57630464"]
[170,"Кунгурский муниципальный район","Шадейское","57630465"]
[171,"Лысьвенский городской округ","Лысьвенский городской округ","57632000"]
[172,"Нытвенский муниципальный район","Григорьевское","57634404"]
[173,"Нытвенский муниципальный район","Новоильинское","57634153"]
[174,"Нытвенский муниципальный район","Нытвенский муниципальный район","57634000"]
[175,"Нытвенский муниципальный район","Нытвенское","57634101"]
[176,"Нытвенский муниципальный район","Постаноговское","57634407"]
[177,"Нытвенский муниципальный район","Уральское","57634157"]
[178,"Нытвенский муниципальный район","Чайковское","57634410"]
[179,"Нытвенский муниципальный район","Чекменевское","57634428"]
[180,"Нытвенский муниципальный район","Шерьинское","57634431"]
[181,"Октябрьский муниципальный район","Атнягузинское","57636403"]
[182,"Октябрьский муниципальный район","Басинское","57636404"]
[183,"Октябрьский муниципальный район","Биявашское","57636410"]
[184,"Октябрьский муниципальный район","Богородское","57636413"]
[185,"Октябрьский муниципальный район","Верх-Тюшевское","57636415"]
[186,"Октябрьский муниципальный район","Енапаевское","57636422"]
[187,"Октябрьский муниципальный район","Заводо-Тюшевское","57636425"]
[188,"Октябрьский муниципальный район","Ишимовское","57636428"]
[189,"Октябрьский муниципальный район","Октябрьский муниципальный район","57636000"]
[190,"Октябрьский муниципальный район","Октябрьское","57636151"]
[191,"Октябрьский муниципальный район","Петропавловское","57636437"]
[192,"Октябрьский муниципальный район","Русско-Сарсинское","57636443"]
[193,"Октябрьский муниципальный район","Сарсинское","57636156"]
[194,"Октябрьский муниципальный район","Щучье-Озерское","57636460"]
[195,"Ординский муниципальный район","Ашапское","57638402"]
[196,"Ординский муниципальный район","Карьевское","57638413"]
[197,"Ординский муниципальный район","Красноясыльское","57638416"]
[198,"Ординский муниципальный район","Медянское","57638422"]
[199,"Ординский муниципальный район","Ординский муниципальный район","57638000"]
[200,"Ординский муниципальный район","Ординское","57638428"]
[201,"Осинский муниципальный район","Верхнедавыдовское","57640404"]
[202,"Осинский муниципальный район","Горское","57640413"]
[203,"Осинский муниципальный район","Гремячинское","57640414"]
[204,"Осинский муниципальный район","Комаровское","57640419"]
[205,"Осинский муниципальный район","Крыловское","57640422"]
[206,"Осинский муниципальный район","Новозалесновское","57640428"]
[207,"Осинский муниципальный район","Осинский муниципальный район","57640000"]
[208,"Осинский муниципальный район","Осинское","57640101"]
[209,"Осинский муниципальный район","Паклинское","57640434"]
[210,"Осинский муниципальный район","Пальское","57640431"]
[211,"Оханский муниципальный район","Андреевское","57642402"]
[212,"Оханский муниципальный район","Беляевское","57642407"]
[213,"Оханский муниципальный район","Дубровское","57642410"]
[214,"Оханский муниципальный район","Казанское","57642414"]
[215,"Оханский муниципальный район","Острожское","57642417"]
[216,"Оханский муниципальный район","Оханский муниципальный район","57642000"]
[217,"Оханский муниципальный район","Оханское","57642101"]
[218,"Оханский муниципальный район","Таборское","57642425"]
[219,"Оханский муниципальный район","Тулумбаихинское","57642420"]
[220,"Очерский муниципальный район","Кипринское","57644407"]
[221,"Очерский муниципальный район","Нововознесенское","57644419"]
[222,"Очерский муниципальный район","Очерский муниципальный район","57644000"]
[223,"Очерский муниципальный район","Очерское","57644101"]
[224,"Очерский муниципальный район","Павловское","57644154"]
[225,"Очерский муниципальный район","Спешковское","57644425"]
[226,"Пермский городской округ","Пермский городской округ","57701000"]
[227,"Пермский муниципальный район","Бершетское","57646402"]
[228,"Пермский муниципальный район","Гамовское","57646437"]
[229,"Пермский муниципальный район","Двуреченское","57646405"]
[230,"Пермский муниципальный район","Заболотское","57646407"]
[231,"Пермский муниципальный район","Кондратовское","57646409"]
[232,"Пермский муниципальный район","Кукуштанское","57646412"]
[233,"Пермский муниципальный район","Култаевское","57646413"]
[234,"Пермский муниципальный район","Лобановское","57646419"]
[235,"Пермский муниципальный район","Пальниковское","57646440"]
[236,"Пермский муниципальный район","Пермский муниципальный район","57646000"]
[237,"Пермский муниципальный район","Платошинское","57646443"]
[238,"Пермский муниципальный район","Савинское","57646448"]
[239,"Пермский муниципальный район","Сылвенское","57646156"]
[240,"Пермский муниципальный район","Усть-Качкинское","57646458"]
[241,"Пермский муниципальный район","Фроловское","57646461"]
[242,"Пермский муниципальный район","Хохловское","57646464"]
[243,"Пермский муниципальный район","Юго-Камское","57646160"]
[244,"Пермский муниципальный район","Юговское","57646470"]
[245,"Поселок Звездный (ЗАТО)","Звездный","57763001"]
[246,"Поселок Звездный (ЗАТО)","Поселок Звездный (ЗАТО)","57763000"]
[247,"Сивинский муниципальный район","Бубинское","57648402"]
[248,"Сивинский муниципальный район","Екатерининское","57648404"]
[249,"Сивинский муниципальный район","Северокоммунарское","57648430"]
[250,"Сивинский муниципальный район","Сивинский муниципальный район","57648000"]
[251,"Сивинский муниципальный район","Сивинское","57648434"]
[252,"Соликамский городской округ","Соликамский городской округ","57730000"]
[253,"Соликамский муниципальный район","Басимское","57650440"]
[254,"Соликамский муниципальный район","Касибское","57650416"]
[255,"Соликамский муниципальный район","Краснобережское","57650419"]
[256,"Соликамский муниципальный район","Половодовское","57650428"]
[257,"Соликамский муниципальный район","Родниковское","57650443"]
[258,"Соликамский муниципальный район","Соликамский муниципальный район","57650000"]
[259,"Соликамский муниципальный район","Тохтуевское","57650431"]
[260,"Соликамский муниципальный район","Тюлькинское","57650432"]
[261,"Суксунский муниципальный район","Киселевское","57651410"]
[262,"Суксунский муниципальный район","Ключевское","57651416"]
[263,"Суксунский муниципальный район","Поедугинское","57651422"]
[264,"Суксунский муниципальный район","Суксунский муниципальный район","57651000"]
[265,"Суксунский муниципальный район","Суксунское","57651151"]
[266,"Уинский муниципальный район","Аспинское","57652402"]
[267,"Уинский муниципальный район","Воскресенское","57652404"]
[268,"Уинский муниципальный район","Ломовское","57652410"]
[269,"Уинский муниципальный район","Нижнесыповское","57652412"]
[270,"Уинский муниципальный район","Судинское","57652414"]
[271,"Уинский муниципальный район","Уинский муниципальный район","57652000"]
[272,"Уинский муниципальный район","Уинское","57652416"]
[273,"Уинский муниципальный район","Чайкинское","57652420"]
[274,"Усольский муниципальный район","Орлинское","57653412"]
[275,"Усольский муниципальный район","Романовское","57653428"]
[276,"Усольский муниципальный район","Троицкое","57653432"]
[277,"Усольский муниципальный район","Усольский муниципальный район","57653000"]
[278,"Усольский муниципальный район","Усольское","57653101"]
[279,"Чайковский муниципальный район","Альняшинское","57654402"]
[280,"Чайковский муниципальный район","Большебукорское","57654404"]
[281,"Чайковский муниципальный район","Ваньковское","57654406"]
[282,"Чайковский муниципальный район","Зипуновское","57654413"]
[283,"Чайковский муниципальный район","Марковское","57654414"]
[284,"Чайковский муниципальный район","Ольховское","57654416"]
[285,"Чайковский муниципальный район","Сосновское","57654419"]
[286,"Чайковский муниципальный район","Уральское","57654425"]
[287,"Чайковский муниципальный район","Фокинское","57654428"]
[288,"Чайковский муниципальный район","Чайковский муниципальный район","57654000"]
[289,"Чайковский муниципальный район","Чайковское","57654101"]
[290,"Частинский муниципальный район","Бабкинское","57655402"]
[291,"Частинский муниципальный район","Ножовское","57655416"]
[292,"Частинский муниципальный район","Частинский муниципальный район","57655000"]
[293,"Частинский муниципальный район","Частинское","57655425"]
[294,"Частинский муниципальный район","Шабуровское","57655428"]
[295,"Чердынский муниципальный район","Бондюжское","57656402"]
[296,"Чердынский муниципальный район","Валайское","57656404"]
[297,"Чердынский муниципальный район","Вильгортское","57656407"]
[298,"Чердынский муниципальный район","Керчевское","57656424"]
[299,"Чердынский муниципальный район","Колвинское","57656413"]
[300,"Чердынский муниципальный район","Ныробское","57656157"]
[301,"Чердынский муниципальный район","Покчинское","57656434"]
[302,"Чердынский муниципальный район","Рябининское","57656446"]
[303,"Чердынский муниципальный район","Усть-Урольское","57656452"]
[304,"Чердынский муниципальный район","Чердынский муниципальный район","57656000"]
[305,"Чердынский муниципальный район","Чердынское","57656101"]
[306,"Чернушинский муниципальный район","Ананьинское","57657404"]
[307,"Чернушинский муниципальный район","Бедряжинское","57657410"]
[308,"Чернушинский муниципальный район","Бродовское","57657413"]
[309,"Чернушинский муниципальный район","Деменевское","57657416"]
[310,"Чернушинский муниципальный район","Етышинское","57657425"]
[311,"Чернушинский муниципальный район","Калиновское","57657431"]
[312,"Чернушинский муниципальный район","Павловское","57657436"]
[313,"Чернушинский муниципальный район","Рябковское","57657437"]
[314,"Чернушинский муниципальный район","Слудовское","57657439"]
[315,"Чернушинский муниципальный район","Сульмашинское","57657440"]
[316,"Чернушинский муниципальный район","Таушинское","57657443"]
[317,"Чернушинский муниципальный район","Труновское","57657446"]
[318,"Чернушинский муниципальный район","Трушниковское","57657449"]
[319,"Чернушинский муниципальный район","Тюинское","57657451"]
[320,"Чернушинский муниципальный район","Чернушинский муниципальный район","57657000"]
[321,"Чернушинский муниципальный район","Чернушинское","57657101"]
[322,"Чусовской муниципальный район","Верхнекалинское","57658402"]
[323,"Чусовской муниципальный район","Верхнечусовское Городковское","57658454"]
[324,"Чусовской муниципальный район","Калинское","57658456"]
[325,"Чусовской муниципальный район","Комарихинское","57658458"]
[326,"Чусовской муниципальный район","Никифоровское","57658410"]
[327,"Чусовской муниципальный район","Сельское","57658413"]
[328,"Чусовской муниципальный район","Скальнинское","57658462"]
[329,"Чусовской муниципальный район","Чусовское","57658101"]
[330,"Чусовской муниципальный район","Чусовской муниципальный район","57658000"]
[331,"Юрлинский муниципальный район","Усть-Березовское","57825418"]
[332,"Юрлинский муниципальный район","Усть-Зулинское","57825420"]
[333,"Юрлинский муниципальный район","Юрлинский муниципальный район","57825000"]
[334,"Юрлинский муниципальный район","Юрлинское","57825426"]
[335,"Юсьвинский муниципальный район","Архангельское","57827408"]
[336,"Юсьвинский муниципальный район","Купросское","57827416"]
[337,"Юсьвинский муниципальный район","Майкорское","57827417"]
[338,"Юсьвинский муниципальный район","Пожвинское","57827421"]
[339,"Юсьвинский муниципальный район","Юсьвинский муниципальный район","57827000"]
[340,"Юсьвинский муниципальный район","Юсьвинское","57827428"]

{"sheet":"modfrmReestrMR","index":29,"n_rows":0,"n_cols":0,"rows_kept":0,"cut":false,"hidden":true,"merged":[]}

{"sheet":"modfrmCheckUpdates","index":30,"n_rows":0,"n_cols":0,"rows_kept":0,"cut":false,"hidden":true,"merged":[]}